{"text_format":"1","workbook":"xlsx","n_sheets":10,"sheets":["Spiele Staffel 1","Spiele Staffel 2","Spiele Staffel 3","Spiele Staffel 4","Mannschaften","Spielerzuordnung","Alle Spieler","START","STARTEN","Anleitung"],"not_rendered":{"charts":0,"images":3,"macros":1,"external_links":0,"defined_names":11,"comments":1,"pivot_tables":0},"unopened":[],"bounds":{"document_bytes":16777216,"sheet_cells":100000,"rows_first":2000,"rows_last":500,"rows_between":2000,"halvings":0,"cell_chars":16384,"cell_head_chars":4096},"cells_cut":0,"cells_raw":0,"read":"whole","date_system":"1900"}

{"sheet":"Spiele Staffel 1","index":0,"n_rows":48,"n_cols":8,"rows_kept":48,"cut":false,"hidden":true,"merged":[]}
["Mannschaftsmeisterschaft 1.Liga - Hinrunde",null,null,null,null,null,null,"STAFFEL 1 Spiel Wählen"]
["ST","Nr.","Datum","Gastgeber","Gast",null,null,"POKAL 3er:123456:für Pokalspiel"]
[null,221001,"2022-09-13","TTC Rotation Weimar V1","Rotation Tannroda 1",null,null,{"$f":"TEXT(C3,\"TT.M.JJ\")& \":\"&B3&\":\"&D3&\":\"&E3","v":"13.9.22:221001:TTC Rotation Weimar V1:Rotation Tannroda 1"}]
[null,221002,"2022-09-16","TSG Apolda 1","Medizin Blankenhain 1",null,null,"16.9.22:221002:TSG Apolda 1:Medizin Blankenhain 1"]
[null,221003,"2022-09-12","ZLSG Wormstedt 1","KSSV Viktoria Weimar 1",null,null,"12.9.22:221003:ZLSG Wormstedt 1:KSSV Viktoria Weimar 1"]
[null,221004,"2022-09-15","TSV 1914 Berlstedt 1","ZLSG Wormstedt 2",null,null,"15.9.22:221004:TSV 1914 Berlstedt 1:ZLSG Wormstedt 2"]
[null,221005,"2022-09-13","Fortuna Großschwabhausen 1","BSV 04 Bad Berka F1",null,null,"13.9.22:221005:Fortuna Großschwabhausen 1:BSV 04 Bad Berka F1"]
[null,221006,"2022-09-27","Medizin Blankenhain 1","TTC Rotation Weimar V1",null,null,"27.9.22:221006:Medizin Blankenhain 1:TTC Rotation Weimar V1"]
[null,221007,"2022-09-30","KSSV Viktoria Weimar 1","TSG Apolda 1",null,null,"30.9.22:221007:KSSV Viktoria Weimar 1:TSG Apolda 1"]
[null,221008,"2022-09-26","ZLSG Wormstedt 2","ZLSG Wormstedt 1",null,null,"26.9.22:221008:ZLSG Wormstedt 2:ZLSG Wormstedt 1"]
[null,221009,"2022-09-29","BSV 04 Bad Berka F1","TSV 1914 Berlstedt 1",null,null,"29.9.22:221009:BSV 04 Bad Berka F1:TSV 1914 Berlstedt 1"]
[null,221010,"2022-09-30","Rotation Tannroda 1","Fortuna Großschwabhausen 1",null,null,"30.9.22:221010:Rotation Tannroda 1:Fortuna Großschwabhausen 1"]
[null,221011,"2022-10-04","TTC Rotation Weimar V1","KSSV Viktoria Weimar 1",null,null,"04.10.22:221011:TTC Rotation Weimar V1:KSSV Viktoria Weimar 1"]
[null,221012,"2022-10-07","TSG Apolda 1","ZLSG Wormstedt 2",null,null,"07.10.22:221012:TSG Apolda 1:ZLSG Wormstedt 2"]
[null,221013,"2022-10-17","ZLSG Wormstedt 1","BSV 04 Bad Berka F1",null,null,"17.10.22:221013:ZLSG Wormstedt 1:BSV 04 Bad Berka F1"]
[null,221014,"2022-10-06","TSV 1914 Berlstedt 1","Fortuna Großschwabhausen 1",null,null,"06.10.22:221014:TSV 1914 Berlstedt 1:Fortuna Großschwabhausen 1"]
[null,221015,"2022-10-04","Medizin Blankenhain 1","Rotation Tannroda 1",null,null,"04.10.22:221015:Medizin Blankenhain 1:Rotation Tannroda 1"]
[null,221016,"2022-10-10","ZLSG Wormstedt 2","TTC Rotation Weimar V1",null,null,"10.10.22:221016:ZLSG Wormstedt 2:TTC Rotation Weimar V1"]
[null,221017,"2022-10-13","BSV 04 Bad Berka F1","TSG Apolda 1",null,null,"13.10.22:221017:BSV 04 Bad Berka F1:TSG Apolda 1"]
[null,221018,"2022-10-11","Fortuna Großschwabhausen 1","ZLSG Wormstedt 1",null,null,"11.10.22:221018:Fortuna Großschwabhausen 1:ZLSG Wormstedt 1"]
[null,221019,"2022-10-14","Rotation Tannroda 1","TSV 1914 Berlstedt 1",null,null,"14.10.22:221019:Rotation Tannroda 1:TSV 1914 Berlstedt 1"]
[null,221020,"2022-10-14","KSSV Viktoria Weimar 1","Medizin Blankenhain 1",null,null,{"$f":"TEXT(C22,\"TT.M.JJ\")& \":\"&B22&\":\"&D22&\":\"&E22","v":"14.10.22:221020:KSSV Viktoria Weimar 1:Medizin Blankenhain 1"}]
[null,221021,"2022-11-01","TTC Rotation Weimar V1","BSV 04 Bad Berka F1",null,null,"01.11.22:221021:TTC Rotation Weimar V1:BSV 04 Bad Berka F1"]
[null,221022,"2022-11-04","TSG Apolda 1","Fortuna Großschwabhausen 1",null,null,"04.11.22:221022:TSG Apolda 1:Fortuna Großschwabhausen 1"]
[null,221023,"2022-10-24","ZLSG Wormstedt 1","TSV 1914 Berlstedt 1",null,null,"24.10.22:221023:ZLSG Wormstedt 1:TSV 1914 Berlstedt 1"]
[null,221024,"2022-11-01","Medizin Blankenhain 1","ZLSG Wormstedt 2",null,null,"01.11.22:221024:Medizin Blankenhain 1:ZLSG Wormstedt 2"]
[null,221025,"2022-11-04","KSSV Viktoria Weimar 1","Rotation Tannroda 1",null,null,"04.11.22:221025:KSSV Viktoria Weimar 1:Rotation Tannroda 1"]
[null,221026,"2022-11-08","Fortuna Großschwabhausen 1","TTC Rotation Weimar V1",null,null,"08.11.22:221026:Fortuna Großschwabhausen 1:TTC Rotation Weimar V1"]
[null,221027,"2022-11-10","TSV 1914 Berlstedt 1","TSG Apolda 1",null,null,"10.11.22:221027:TSV 1914 Berlstedt 1:TSG Apolda 1"]
[null,221028,"2022-11-11","Rotation Tannroda 1","ZLSG Wormstedt 1",null,null,"11.11.22:221028:Rotation Tannroda 1:ZLSG Wormstedt 1"]
[null,221029,"2022-11-10","BSV 04 Bad Berka F1","Medizin Blankenhain 1",null,null,"10.11.22:221029:BSV 04 Bad Berka F1:Medizin Blankenhain 1"]
[null,221030,"2022-11-07","ZLSG Wormstedt 2","KSSV Viktoria Weimar 1",null,null,"07.11.22:221030:ZLSG Wormstedt 2:KSSV Viktoria Weimar 1"]
[null,221031,"2022-11-15","TTC Rotation Weimar V1","TSV 1914 Berlstedt 1",null,null,"15.11.22:221031:TTC Rotation Weimar V1:TSV 1914 Berlstedt 1"]
[null,221032,"2022-11-18","TSG Apolda 1","ZLSG Wormstedt 1",null,null,"18.11.22:221032:TSG Apolda 1:ZLSG Wormstedt 1"]
[null,221033,"2022-11-15","Medizin Blankenhain 1","Fortuna Großschwabhausen 1",null,null,"15.11.22:221033:Medizin Blankenhain 1:Fortuna Großschwabhausen 1"]
[null,221034,"2022-11-18","KSSV Viktoria Weimar 1","BSV 04 Bad Berka F1",null,null,"18.11.22:221034:KSSV Viktoria Weimar 1:BSV 04 Bad Berka F1"]
[null,221035,"2022-11-14","ZLSG Wormstedt 2","Rotation Tannroda 1",null,null,"14.11.22:221035:ZLSG Wormstedt 2:Rotation Tannroda 1"]
[null,221036,"2022-11-21","ZLSG Wormstedt 1","TTC Rotation Weimar V1",null,null,"21.11.22:221036:ZLSG Wormstedt 1:TTC Rotation Weimar V1"]
[null,221037,"2022-11-25","Rotation Tannroda 1","TSG Apolda 1",null,null,"25.11.22:221037:Rotation Tannroda 1:TSG Apolda 1"]
[null,221038,"2022-11-24","TSV 1914 Berlstedt 1","Medizin Blankenhain 1",null,null,"24.11.22:221038:TSV 1914 Berlstedt 1:Medizin Blankenhain 1"]
[null,221039,"2022-11-22","Fortuna Großschwabhausen 1","KSSV Viktoria Weimar 1",null,null,"22.11.22:221039:Fortuna Großschwabhausen 1:KSSV Viktoria Weimar 1"]
[null,221040,"2022-11-24","BSV 04 Bad Berka F1","ZLSG Wormstedt 2",null,null,"24.11.22:221040:BSV 04 Bad Berka F1:ZLSG Wormstedt 2"]
[null,221041,"2022-11-29","TTC Rotation Weimar V1","TSG Apolda 1",null,null,"29.11.22:221041:TTC Rotation Weimar V1:TSG Apolda 1"]
[null,221042,"2022-11-29","Medizin Blankenhain 1","ZLSG Wormstedt 1",null,null,"29.11.22:221042:Medizin Blankenhain 1:ZLSG Wormstedt 1"]
[null,221043,"2022-12-02","KSSV Viktoria Weimar 1","TSV 1914 Berlstedt 1",null,null,"02.12.22:221043:KSSV Viktoria Weimar 1:TSV 1914 Berlstedt 1"]
[null,221044,"2022-11-28","ZLSG Wormstedt 2","Fortuna Großschwabhausen 1",null,null,"28.11.22:221044:ZLSG Wormstedt 2:Fortuna Großschwabhausen 1"]
[null,221045,"2022-12-01","BSV 04 Bad Berka F1","Rotation Tannroda 1",null,null,"01.12.22:221045:BSV 04 Bad Berka F1:Rotation Tannroda 1"]
[null,123456,"POKAL 3er","für Pokalspiel die 123456 wählen",null,null,null,"POKAL 3er:123456:für Pokalspiel die 123456 wählen:"]

{"sheet":"Spiele Staffel 2","index":1,"n_rows":48,"n_cols":8,"rows_kept":48,"cut":false,"hidden":true,"merged":[]}
["Mannschaftsmeisterschaft 2.Liga - Hinrunde",null,null,null,null,null,null,"STAFFEL 2 Spiel Wählen"]
["ST","Nr.","Datum","Gastgeber","Gast",null,null,"POKAL 3er:123456:für Pokalspiel"]
[10,222001,"2022-09-16","TTC Rotation Weimar V3","TTC Rotation Weimar V2",null,null,{"$f":"TEXT(C3,\"TT.M.JJ\")& \":\"&B3&\":\"&D3&\":\"&E3","v":"16.9.22:222001:TTC Rotation Weimar V3:TTC Rotation Weimar V2"}]
[null,222002,"2022-09-15","BSV 04 Bad Berka F2","Fortuna Großschwabhausen 2",null,null,"15.9.22:222002:BSV 04 Bad Berka F2:Fortuna Großschwabhausen 2"]
[null,222003,"2022-09-15","ZLSG Wormstedt 3","TSV 1914 Berlstedt 2",null,null,"15.9.22:222003:ZLSG Wormstedt 3:TSV 1914 Berlstedt 2"]
[null,222004,"2022-09-16","KSSV Viktoria Weimar 2","ZLSG Wormstedt 4",null,null,"16.9.22:222004:KSSV Viktoria Weimar 2:ZLSG Wormstedt 4"]
[null,222005,"2022-09-16","Rotation Tannroda 2","Medizin Blankenhain 2",null,null,"16.9.22:222005:Rotation Tannroda 2:Medizin Blankenhain 2"]
[11,222006,"2022-09-28","Fortuna Großschwabhausen 2","TTC Rotation Weimar V3",null,null,"28.9.22:222006:Fortuna Großschwabhausen 2:TTC Rotation Weimar V3"]
[null,222007,"2022-09-29","TSV 1914 Berlstedt 2","BSV 04 Bad Berka F2",null,null,"29.9.22:222007:TSV 1914 Berlstedt 2:BSV 04 Bad Berka F2"]
[null,222008,"2022-09-29","ZLSG Wormstedt 4","ZLSG Wormstedt 3",null,null,"29.9.22:222008:ZLSG Wormstedt 4:ZLSG Wormstedt 3"]
[null,222009,"2022-09-30","Medizin Blankenhain 2","KSSV Viktoria Weimar 2",null,null,"30.9.22:222009:Medizin Blankenhain 2:KSSV Viktoria Weimar 2"]
[null,222010,"2022-09-27","TTC Rotation Weimar V2","Rotation Tannroda 2",null,null,"27.9.22:222010:TTC Rotation Weimar V2:Rotation Tannroda 2"]
[12,222011,"2022-10-07","TTC Rotation Weimar V3","TSV 1914 Berlstedt 2",null,null,"07.10.22:222011:TTC Rotation Weimar V3:TSV 1914 Berlstedt 2"]
[null,222012,"2022-10-06","BSV 04 Bad Berka F2","ZLSG Wormstedt 4",null,null,"06.10.22:222012:BSV 04 Bad Berka F2:ZLSG Wormstedt 4"]
[null,222013,"2022-10-06","ZLSG Wormstedt 3","Medizin Blankenhain 2",null,null,"06.10.22:222013:ZLSG Wormstedt 3:Medizin Blankenhain 2"]
[null,222014,"2022-10-07","KSSV Viktoria Weimar 2","Rotation Tannroda 2",null,null,"07.10.22:222014:KSSV Viktoria Weimar 2:Rotation Tannroda 2"]
[null,222015,"2022-10-05","Fortuna Großschwabhausen 2","TTC Rotation Weimar V2",null,null,"05.10.22:222015:Fortuna Großschwabhausen 2:TTC Rotation Weimar V2"]
[13,222016,"2022-10-13","ZLSG Wormstedt 4","TTC Rotation Weimar V3",null,null,"13.10.22:222016:ZLSG Wormstedt 4:TTC Rotation Weimar V3"]
[null,222017,"2022-10-14","Medizin Blankenhain 2","BSV 04 Bad Berka F2",null,null,"14.10.22:222017:Medizin Blankenhain 2:BSV 04 Bad Berka F2"]
[null,222018,"2022-10-14","Rotation Tannroda 2","ZLSG Wormstedt 3",null,null,"14.10.22:222018:Rotation Tannroda 2:ZLSG Wormstedt 3"]
[null,222019,"2022-10-11","TTC Rotation Weimar V2","KSSV Viktoria Weimar 2",null,null,"11.10.22:222019:TTC Rotation Weimar V2:KSSV Viktoria Weimar 2"]
[null,222020,"2022-10-13","TSV 1914 Berlstedt 2","Fortuna Großschwabhausen 2",null,null,{"$f":"TEXT(C22,\"TT.M.JJ\")& \":\"&B22&\":\"&D22&\":\"&E22","v":"13.10.22:222020:TSV 1914 Berlstedt 2:Fortuna Großschwabhausen 2"}]
[14,222021,"2022-11-04","TTC Rotation Weimar V3","Medizin Blankenhain 2",null,null,"04.11.22:222021:TTC Rotation Weimar V3:Medizin Blankenhain 2"]
[null,222022,"2022-11-03","BSV 04 Bad Berka F2","Rotation Tannroda 2",null,null,"03.11.22:222022:BSV 04 Bad Berka F2:Rotation Tannroda 2"]
[null,222023,"2022-11-03","ZLSG Wormstedt 3","KSSV Viktoria Weimar 2",null,null,"03.11.22:222023:ZLSG Wormstedt 3:KSSV Viktoria Weimar 2"]
[null,222024,"2022-11-02","Fortuna Großschwabhausen 2","ZLSG Wormstedt 4",null,null,"02.11.22:222024:Fortuna Großschwabhausen 2:ZLSG Wormstedt 4"]
[null,222025,"2022-11-03","TSV 1914 Berlstedt 2","TTC Rotation Weimar V2",null,null,"03.11.22:222025:TSV 1914 Berlstedt 2:TTC Rotation Weimar V2"]
[15,222026,"2022-11-11","Rotation Tannroda 2","TTC Rotation Weimar V3",null,null,"11.11.22:222026:Rotation Tannroda 2:TTC Rotation Weimar V3"]
[null,222027,"2022-11-11","KSSV Viktoria Weimar 2","BSV 04 Bad Berka F2",null,null,"11.11.22:222027:KSSV Viktoria Weimar 2:BSV 04 Bad Berka F2"]
[null,222028,"2022-11-08","TTC Rotation Weimar V2","ZLSG Wormstedt 3",null,null,"08.11.22:222028:TTC Rotation Weimar V2:ZLSG Wormstedt 3"]
[null,222029,"2022-11-11","Medizin Blankenhain 2","Fortuna Großschwabhausen 2",null,null,"11.11.22:222029:Medizin Blankenhain 2:Fortuna Großschwabhausen 2"]
[null,222030,"2022-11-10","ZLSG Wormstedt 4","TSV 1914 Berlstedt 2",null,null,"10.11.22:222030:ZLSG Wormstedt 4:TSV 1914 Berlstedt 2"]
[16,222031,"2022-11-18","TTC Rotation Weimar V3","KSSV Viktoria Weimar 2",null,null,"18.11.22:222031:TTC Rotation Weimar V3:KSSV Viktoria Weimar 2"]
[null,222032,"2022-11-17","BSV 04 Bad Berka F2","ZLSG Wormstedt 3",null,null,"17.11.22:222032:BSV 04 Bad Berka F2:ZLSG Wormstedt 3"]
[null,222033,"2022-11-16","Fortuna Großschwabhausen 2","Rotation Tannroda 2",null,null,"16.11.22:222033:Fortuna Großschwabhausen 2:Rotation Tannroda 2"]
[null,222034,"2022-11-17","TSV 1914 Berlstedt 2","Medizin Blankenhain 2",null,null,"17.11.22:222034:TSV 1914 Berlstedt 2:Medizin Blankenhain 2"]
[null,222035,"2022-11-17","ZLSG Wormstedt 4","TTC Rotation Weimar V2",null,null,"17.11.22:222035:ZLSG Wormstedt 4:TTC Rotation Weimar V2"]
[17,222036,"2022-11-24","ZLSG Wormstedt 3","TTC Rotation Weimar V3",null,null,"24.11.22:222036:ZLSG Wormstedt 3:TTC Rotation Weimar V3"]
[null,222037,"2022-11-22","TTC Rotation Weimar V2","BSV 04 Bad Berka F2",null,null,"22.11.22:222037:TTC Rotation Weimar V2:BSV 04 Bad Berka F2"]
[null,222038,"2022-11-25","KSSV Viktoria Weimar 2","Fortuna Großschwabhausen 2",null,null,"25.11.22:222038:KSSV Viktoria Weimar 2:Fortuna Großschwabhausen 2"]
[null,222039,"2022-11-25","Rotation Tannroda 2","TSV 1914 Berlstedt 2",null,null,"25.11.22:222039:Rotation Tannroda 2:TSV 1914 Berlstedt 2"]
[null,222040,"2022-11-25","Medizin Blankenhain 2","ZLSG Wormstedt 4",null,null,"25.11.22:222040:Medizin Blankenhain 2:ZLSG Wormstedt 4"]
[18,222041,"2022-12-02","TTC Rotation Weimar V3","BSV 04 Bad Berka F2",null,null,"02.12.22:222041:TTC Rotation Weimar V3:BSV 04 Bad Berka F2"]
[null,222042,"2022-11-30","Fortuna Großschwabhausen 2","ZLSG Wormstedt 3",null,null,"30.11.22:222042:Fortuna Großschwabhausen 2:ZLSG Wormstedt 3"]
[null,222043,"2022-12-01","TSV 1914 Berlstedt 2","KSSV Viktoria Weimar 2",null,null,"01.12.22:222043:TSV 1914 Berlstedt 2:KSSV Viktoria Weimar 2"]
[null,222044,"2022-12-01","ZLSG Wormstedt 4","Rotation Tannroda 2",null,null,"01.12.22:222044:ZLSG Wormstedt 4:Rotation Tannroda 2"]
[null,222045,"2022-12-02","Medizin Blankenhain 2","TTC Rotation Weimar V2",null,null,"02.12.22:222045:Medizin Blankenhain 2:TTC Rotation Weimar V2"]
[null,123456,"POKAL 3er","für Pokalspiel die 123456 wählen",null,null,null,{"$f":"TEXT(C48,\"TT.M.JJ\")& \":\"&B48&\":\"&D48&\":\"&E48","v":"POKAL 3er:123456:für Pokalspiel die 123456 wählen:"}]

{"sheet":"Spiele Staffel 3","index":2,"n_rows":69,"n_cols":8,"rows_kept":69,"cut":false,"hidden":true,"merged":[]}
["Mannschaftsmeisterschaft 3.Liga ",null,null,null,null,null,null,"STAFFEL 3 Spiel Wählen"]
["ST","Nr.","Datum","Gastgeber","Gast",null,null,"POKAL 3er:123456:für Pokalspiel"]
[null,223001,"2022-09-16","Rotation Tannroda 3","TSV 1914 Berlstedt 3",null,null,{"$f":"TEXT(C3,\"TT.M.JJ\")& \":\"&B3&\":\"&D3&\":\"&E3","v":"16.9.22:223001:Rotation Tannroda 3:TSV 1914 Berlstedt 3"}]
[null,223002,"2022-09-13","TTC Rotation Weimar V4","TTC Rotation Weimar V5",null,null,"13.9.22:223002:TTC Rotation Weimar V4:TTC Rotation Weimar V5"]
[null,223003,"2022-09-13","Weimarer SV 1","KSSV Viktoria Weimar 3",null,null,"13.9.22:223003:Weimarer SV 1:KSSV Viktoria Weimar 3"]
[null,223004,"2022-09-15","ZLSG Wormstedt 5","Weimarer SV 2",null,null,"15.9.22:223004:ZLSG Wormstedt 5:Weimarer SV 2"]
[null,223005,"2022-09-12","BSV 04 Bad Berka F3","TSG Apolda 2",null,null,"12.9.22:223005:BSV 04 Bad Berka F3:TSG Apolda 2"]
[null,223006,"2022-09-14","Fortuna Großschwabhausen 3","Fortuna Großschwabhausen 4",null,null,"14.9.22:223006:Fortuna Großschwabhausen 3:Fortuna Großschwabhausen 4"]
[null,223007,"2022-09-29","Fortuna Großschwabhausen 4","BSV 04 Bad Berka F3",null,null,"29.9.22:223007:Fortuna Großschwabhausen 4:BSV 04 Bad Berka F3"]
[null,223008,"2022-09-30","TSG Apolda 2","ZLSG Wormstedt 5",null,null,"30.9.22:223008:TSG Apolda 2:ZLSG Wormstedt 5"]
[null,223009,"2022-09-29","Weimarer SV 2","Weimarer SV 1",null,null,"29.9.22:223009:Weimarer SV 2:Weimarer SV 1"]
[null,223010,"2022-09-28","KSSV Viktoria Weimar 3","TTC Rotation Weimar V4",null,null,"28.9.22:223010:KSSV Viktoria Weimar 3:TTC Rotation Weimar V4"]
[null,223011,"2022-09-30","TTC Rotation Weimar V5","Rotation Tannroda 3",null,null,"30.9.22:223011:TTC Rotation Weimar V5:Rotation Tannroda 3"]
[null,223012,"2022-09-29","TSV 1914 Berlstedt 3","Fortuna Großschwabhausen 3",null,null,"29.9.22:223012:TSV 1914 Berlstedt 3:Fortuna Großschwabhausen 3"]
[null,223013,"2022-10-07","Rotation Tannroda 3","KSSV Viktoria Weimar 3",null,null,"07.10.22:223013:Rotation Tannroda 3:KSSV Viktoria Weimar 3"]
[null,223014,"2022-10-04","TTC Rotation Weimar V4","Weimarer SV 2",null,null,"04.10.22:223014:TTC Rotation Weimar V4:Weimarer SV 2"]
[null,223015,"2022-10-04","Weimarer SV 1","TSG Apolda 2",null,null,"04.10.22:223015:Weimarer SV 1:TSG Apolda 2"]
[null,223016,"2022-10-06","ZLSG Wormstedt 5","Fortuna Großschwabhausen 4",null,null,"06.10.22:223016:ZLSG Wormstedt 5:Fortuna Großschwabhausen 4"]
[null,223017,"2022-10-17","BSV 04 Bad Berka F3","Fortuna Großschwabhausen 3",null,null,"17.10.22:223017:BSV 04 Bad Berka F3:Fortuna Großschwabhausen 3"]
[null,223018,"2022-10-06","TSV 1914 Berlstedt 3","TTC Rotation Weimar V5",null,null,{"$f":"TEXT(C20,\"TT.M.JJ\")& \":\"&B20&\":\"&D20&\":\"&E20","v":"06.10.22:223018:TSV 1914 Berlstedt 3:TTC Rotation Weimar V5"}]
[null,223019,"2022-10-13","Fortuna Großschwabhausen 4","Weimarer SV 1",null,null,"13.10.22:223019:Fortuna Großschwabhausen 4:Weimarer SV 1"]
[null,223020,"2022-10-14","TSG Apolda 2","TTC Rotation Weimar V4",null,null,"14.10.22:223020:TSG Apolda 2:TTC Rotation Weimar V4"]
[null,223021,"2022-10-13","Weimarer SV 2","Rotation Tannroda 3",null,null,"13.10.22:223021:Weimarer SV 2:Rotation Tannroda 3"]
[null,223022,"2022-10-12","KSSV Viktoria Weimar 3","TTC Rotation Weimar V5",null,null,"12.10.22:223022:KSSV Viktoria Weimar 3:TTC Rotation Weimar V5"]
[null,223023,"2022-10-10","BSV 04 Bad Berka F3","TSV 1914 Berlstedt 3",null,null,"10.10.22:223023:BSV 04 Bad Berka F3:TSV 1914 Berlstedt 3"]
[null,223024,"2022-10-12","Fortuna Großschwabhausen 3","ZLSG Wormstedt 5",null,null,"12.10.22:223024:Fortuna Großschwabhausen 3:ZLSG Wormstedt 5"]
[null,223025,"2022-11-04","Rotation Tannroda 3","TSG Apolda 2",null,null,"04.11.22:223025:Rotation Tannroda 3:TSG Apolda 2"]
[null,223026,"2022-11-01","TTC Rotation Weimar V4","Fortuna Großschwabhausen 4",null,null,"01.11.22:223026:TTC Rotation Weimar V4:Fortuna Großschwabhausen 4"]
[null,223027,"2022-11-01","Weimarer SV 1","Fortuna Großschwabhausen 3",null,null,"01.11.22:223027:Weimarer SV 1:Fortuna Großschwabhausen 3"]
[null,223028,"2022-11-03","ZLSG Wormstedt 5","BSV 04 Bad Berka F3",null,null,"03.11.22:223028:ZLSG Wormstedt 5:BSV 04 Bad Berka F3"]
[null,223029,"2022-11-04","TTC Rotation Weimar V5","Weimarer SV 2",null,null,"04.11.22:223029:TTC Rotation Weimar V5:Weimarer SV 2"]
[null,223030,"2022-11-03","TSV 1914 Berlstedt 3","KSSV Viktoria Weimar 3",null,null,"03.11.22:223030:TSV 1914 Berlstedt 3:KSSV Viktoria Weimar 3"]
[null,223031,"2022-11-10","Fortuna Großschwabhausen 4","Rotation Tannroda 3",null,null,"10.11.22:223031:Fortuna Großschwabhausen 4:Rotation Tannroda 3"]
[null,223032,"2022-11-11","TSG Apolda 2","TTC Rotation Weimar V5",null,null,"11.11.22:223032:TSG Apolda 2:TTC Rotation Weimar V5"]
[null,223033,"2022-11-10","Weimarer SV 2","KSSV Viktoria Weimar 3",null,null,"10.11.22:223033:Weimarer SV 2:KSSV Viktoria Weimar 3"]
[null,223034,"2022-11-10","ZLSG Wormstedt 5","TSV 1914 Berlstedt 3",null,null,"10.11.22:223034:ZLSG Wormstedt 5:TSV 1914 Berlstedt 3"]
[null,223035,"2022-11-07","BSV 04 Bad Berka F3","Weimarer SV 1",null,null,"07.11.22:223035:BSV 04 Bad Berka F3:Weimarer SV 1"]
[null,223036,"2022-11-09","Fortuna Großschwabhausen 3","TTC Rotation Weimar V4",null,null,"09.11.22:223036:Fortuna Großschwabhausen 3:TTC Rotation Weimar V4"]
[null,223037,"2022-11-18","Rotation Tannroda 3","Fortuna Großschwabhausen 3",null,null,"18.11.22:223037:Rotation Tannroda 3:Fortuna Großschwabhausen 3"]
[null,223038,"2022-11-15","TTC Rotation Weimar V4","BSV 04 Bad Berka F3",null,null,"15.11.22:223038:TTC Rotation Weimar V4:BSV 04 Bad Berka F3"]
[null,223039,"2022-11-15","Weimarer SV 1","ZLSG Wormstedt 5",null,null,"15.11.22:223039:Weimarer SV 1:ZLSG Wormstedt 5"]
[null,223040,"2022-11-16","KSSV Viktoria Weimar 3","TSG Apolda 2",null,null,"16.11.22:223040:KSSV Viktoria Weimar 3:TSG Apolda 2"]
[null,223041,"2022-11-18","TTC Rotation Weimar V5","Fortuna Großschwabhausen 4",null,null,"18.11.22:223041:TTC Rotation Weimar V5:Fortuna Großschwabhausen 4"]
[null,223042,"2022-11-17","TSV 1914 Berlstedt 3","Weimarer SV 2",null,null,"17.11.22:223042:TSV 1914 Berlstedt 3:Weimarer SV 2"]
[null,223043,"2022-11-24","Fortuna Großschwabhausen 4","KSSV Viktoria Weimar 3",null,null,"24.11.22:223043:Fortuna Großschwabhausen 4:KSSV Viktoria Weimar 3"]
[null,223044,"2022-11-25","TSG Apolda 2","Weimarer SV 2",null,null,"25.11.22:223044:TSG Apolda 2:Weimarer SV 2"]
[null,223045,"2022-11-22","Weimarer SV 1","TSV 1914 Berlstedt 3",null,null,"22.11.22:223045:Weimarer SV 1:TSV 1914 Berlstedt 3"]
[null,223046,"2022-11-24","ZLSG Wormstedt 5","TTC Rotation Weimar V4",null,null,"24.11.22:223046:ZLSG Wormstedt 5:TTC Rotation Weimar V4"]
[null,223047,"2022-11-21","BSV 04 Bad Berka F3","Rotation Tannroda 3",null,null,"21.11.22:223047:BSV 04 Bad Berka F3:Rotation Tannroda 3"]
[null,223048,"2022-11-23","Fortuna Großschwabhausen 3","TTC Rotation Weimar V5",null,null,"23.11.22:223048:Fortuna Großschwabhausen 3:TTC Rotation Weimar V5"]
[null,223049,"2022-12-02","Rotation Tannroda 3","ZLSG Wormstedt 5",null,null,"02.12.22:223049:Rotation Tannroda 3:ZLSG Wormstedt 5"]
[null,223050,"2022-11-29","TTC Rotation Weimar V4","Weimarer SV 1",null,null,"29.11.22:223050:TTC Rotation Weimar V4:Weimarer SV 1"]
[null,223051,"2022-12-01","Weimarer SV 2","Fortuna Großschwabhausen 4",null,null,"01.12.22:223051:Weimarer SV 2:Fortuna Großschwabhausen 4"]
[null,223052,"2022-11-30","KSSV Viktoria Weimar 3","Fortuna Großschwabhausen 3",null,null,"30.11.22:223052:KSSV Viktoria Weimar 3:Fortuna Großschwabhausen 3"]
[null,223053,"2022-12-02","TTC Rotation Weimar V5","BSV 04 Bad Berka F3",null,null,"02.12.22:223053:TTC Rotation Weimar V5:BSV 04 Bad Berka F3"]
[null,223054,"2022-12-01","TSV 1914 Berlstedt 3","TSG Apolda 2",null,null,"01.12.22:223054:TSV 1914 Berlstedt 3:TSG Apolda 2"]
[null,223055,"2022-12-08","Fortuna Großschwabhausen 4","TSG Apolda 2",null,null,"08.12.22:223055:Fortuna Großschwabhausen 4:TSG Apolda 2"]
[null,223056,"2022-12-06","TTC Rotation Weimar V4","TSV 1914 Berlstedt 3",null,null,"06.12.22:223056:TTC Rotation Weimar V4:TSV 1914 Berlstedt 3"]
[null,223057,"2022-12-06","Weimarer SV 1","Rotation Tannroda 3",null,null,"06.12.22:223057:Weimarer SV 1:Rotation Tannroda 3"]
[null,223058,"2022-12-08","ZLSG Wormstedt 5","TTC Rotation Weimar V5",null,null,"08.12.22:223058:ZLSG Wormstedt 5:TTC Rotation Weimar V5"]
[null,223059,"2022-12-05","BSV 04 Bad Berka F3","KSSV Viktoria Weimar 3",null,null,"05.12.22:223059:BSV 04 Bad Berka F3:KSSV Viktoria Weimar 3"]
[null,223060,"2022-12-07","Fortuna Großschwabhausen 3","Weimarer SV 2",null,null,"07.12.22:223060:Fortuna Großschwabhausen 3:Weimarer SV 2"]
[null,223061,"2022-12-16","Rotation Tannroda 3","TTC Rotation Weimar V4",null,null,"16.12.22:223061:Rotation Tannroda 3:TTC Rotation Weimar V4"]
[null,223062,"2022-12-16","TSG Apolda 2","Fortuna Großschwabhausen 3",null,null,"16.12.22:223062:TSG Apolda 2:Fortuna Großschwabhausen 3"]
[null,223063,"2022-12-15","Weimarer SV 2","BSV 04 Bad Berka F3",null,null,"15.12.22:223063:Weimarer SV 2:BSV 04 Bad Berka F3"]
[null,223064,"2022-12-14","KSSV Viktoria Weimar 3","ZLSG Wormstedt 5",null,null,"14.12.22:223064:KSSV Viktoria Weimar 3:ZLSG Wormstedt 5"]
[null,223065,"2022-12-16","TTC Rotation Weimar V5","Weimarer SV 1",null,null,"16.12.22:223065:TTC Rotation Weimar V5:Weimarer SV 1"]
[null,223066,"2022-12-15","TSV 1914 Berlstedt 3","Fortuna Großschwabhausen 4",null,null,"15.12.22:223066:TSV 1914 Berlstedt 3:Fortuna Großschwabhausen 4"]
[null,123456,"POKAL 3er","für Pokalspiel die 123456 wählen"]

{"sheet":"Spiele Staffel 4","index":3,"n_rows":31,"n_cols":8,"rows_kept":31,"cut":false,"hidden":true,"merged":[]}
["Mannschaftsmeisterschaft 4.Liga - ",null,null,null,null,null,null,"STAFFEL 4 Spiel Wählen"]
["ST","Nr.","Datum","Gastgeber","Gast",null,null,"POKAL 3er:123456:für Pokalspiel"]
[null,214029,"2022-02-11","SG Rot. Tannroda 4   ","TSV Berlstedt 4",null,null,{"$f":"TEXT(C3,\"TT.M.JJ\")& \":\"&B3&\":\"&D3&\":\"&E3","v":"11.2.22:214029:SG Rot. Tannroda 4   :TSV Berlstedt 4"}]
[null,214030,"2022-02-10","F. Großschwabhausen 4  ","BSV 04 Bad Berka F4",null,null,"10.2.22:214030:F. Großschwabhausen 4  :BSV 04 Bad Berka F4"]
[null,214031,"2022-02-09","KSSV Victoria Weimar 3  ","TTC Rot. Weimar V5",null,null,"09.2.22:214031:KSSV Victoria Weimar 3  :TTC Rot. Weimar V5"]
[null,214032,"2022-02-08","Weimarer SV 2    ","ZLSG Wormstedt 5",null,null,"08.2.22:214032:Weimarer SV 2    :ZLSG Wormstedt 5"]
[null,214033,"2022-02-24","TSV Berlstedt 4   ","F. Großschwabhausen 4",null,null,"24.2.22:214033:TSV Berlstedt 4   :F. Großschwabhausen 4"]
[null,214034,"2022-02-21","BSV 04 Bad Berka F4  ","KSSV Victoria Weimar 3",null,null,"21.2.22:214034:BSV 04 Bad Berka F4  :KSSV Victoria Weimar 3"]
[null,214035,"2022-02-25","TTC Rot. Weimar V5   ","Weimarer SV 2",null,null,"25.2.22:214035:TTC Rot. Weimar V5   :Weimarer SV 2"]
[null,214036,"2022-02-21","ZLSG Wormstedt 5   ","SG Rot. Tannroda 4",null,null,"21.2.22:214036:ZLSG Wormstedt 5   :SG Rot. Tannroda 4"]
[null,214037,"2022-03-02","KSSV Victoria Weimar 3  ","TSV Berlstedt 4",null,null,"02.3.22:214037:KSSV Victoria Weimar 3  :TSV Berlstedt 4"]
[null,214038,"2022-03-01","Weimarer SV 2    ","BSV 04 Bad Berka F4",null,null,"01.3.22:214038:Weimarer SV 2    :BSV 04 Bad Berka F4"]
[null,214039,"2022-02-28","ZLSG Wormstedt 5   ","TTC Rot. Weimar V5",null,null,"28.2.22:214039:ZLSG Wormstedt 5   :TTC Rot. Weimar V5"]
[null,214040,"2022-03-04","SG Rot. Tannroda 4   ","F. Großschwabhausen 4",null,null,"04.3.22:214040:SG Rot. Tannroda 4   :F. Großschwabhausen 4"]
[null,214041,"2022-03-10","TSV Berlstedt 4   ","Weimarer SV 2",null,null,"10.3.22:214041:TSV Berlstedt 4   :Weimarer SV 2"]
[null,214042,"2022-03-07","BSV 04 Bad Berka F4  ","ZLSG Wormstedt 5",null,null,"07.3.22:214042:BSV 04 Bad Berka F4  :ZLSG Wormstedt 5"]
[null,214043,"2022-03-11","TTC Rot. Weimar V5   ","SG Rot. Tannroda 4",null,null,"11.3.22:214043:TTC Rot. Weimar V5   :SG Rot. Tannroda 4"]
[null,214044,"2022-03-10","F. Großschwabhausen 4  ","KSSV Victoria Weimar 3",null,null,"10.3.22:214044:F. Großschwabhausen 4  :KSSV Victoria Weimar 3"]
[null,214045,"2022-03-14","ZLSG Wormstedt 5   ","TSV Berlstedt 4",null,null,"14.3.22:214045:ZLSG Wormstedt 5   :TSV Berlstedt 4"]
[null,214046,"2022-03-18","TTC Rot. Weimar V5   ","BSV 04 Bad Berka F4",null,null,"18.3.22:214046:TTC Rot. Weimar V5   :BSV 04 Bad Berka F4"]
[null,214047,"2022-03-15","Weimarer SV 2    ","F. Großschwabhausen 4",null,null,"15.3.22:214047:Weimarer SV 2    :F. Großschwabhausen 4"]
[null,214048,"2022-03-18","SG Rot. Tannroda 4   ","KSSV Victoria Weimar 3",null,null,"18.3.22:214048:SG Rot. Tannroda 4   :KSSV Victoria Weimar 3"]
[null,214049,"2022-03-24","TSV Berlstedt 4   ","TTC Rot. Weimar V5",null,null,"24.3.22:214049:TSV Berlstedt 4   :TTC Rot. Weimar V5"]
[null,214050,"2022-03-21","BSV 04 Bad Berka F4  ","SG Rot. Tannroda 4",null,null,"21.3.22:214050:BSV 04 Bad Berka F4  :SG Rot. Tannroda 4"]
[null,214051,"2022-03-23","KSSV Victoria Weimar 3  ","Weimarer SV 2",null,null,"23.3.22:214051:KSSV Victoria Weimar 3  :Weimarer SV 2"]
[null,214052,"2022-03-24","F. Großschwabhausen 4  ","ZLSG Wormstedt 5",null,null,"24.3.22:214052:F. Großschwabhausen 4  :ZLSG Wormstedt 5"]
[null,214053,"2022-03-28","BSV 04 Bad Berka F4  ","TSV Berlstedt 4",null,null,"28.3.22:214053:BSV 04 Bad Berka F4  :TSV Berlstedt 4"]
[null,214054,"2022-04-01","TTC Rot. Weimar V5   ","F. Großschwabhausen 4",null,null,"01.4.22:214054:TTC Rot. Weimar V5   :F. Großschwabhausen 4"]
[null,214055,"2022-03-28","ZLSG Wormstedt 5   ","KSSV Victoria Weimar 3",null,null,"28.3.22:214055:ZLSG Wormstedt 5   :KSSV Victoria Weimar 3"]
[null,214056,"2022-04-01","SG Rot. Tannroda 4 ","Weimarer SV 2",null,null,"01.4.22:214056:SG Rot. Tannroda 4 :Weimarer SV 2"]
[null,123456,"POKAL 3er","für Pokalspiel die 123456 wählen",null,null,null,"POKAL 3er:123456:für Pokalspiel die 123456 wählen:"]

{"sheet":"Mannschaften","index":4,"n_rows":33,"n_cols":7,"rows_kept":33,"cut":false,"hidden":true,"merged":[]}
["Staffel1","Staffel2","Staffel3","Staffel4","Alle_Staffeln_Pokal"]
["BSV_04_Bad_Berka_F1","TSV_1914_Berlstedt_2","TSV_1914_Berlstedt_3",null,"BSV_04_Bad_Berka_F1",null,"Staffel1"]
["TSG_Apolda_1","Fort._Großschwabhausen_2","Fort._Großschwabhausen_3",null,"TSG_Apolda_1",null,"Staffel2"]
["ZLSG_Wormstedt_1","KSSV_Victoria_Weimar_2","TTC_Rotation_Weimar_V5",null,"ZLSG_Wormstedt_1",null,"Staffel3"]
["ZLSG_Wormstedt_2","TTC_Rotation_Weimar_V2","BSV_04_Bad_Berka_F3",null,"ZLSG_Wormstedt_2",null,"Staffel4"]
["SG_Rotation_Tannroda_1","ZLSG_Wormstedt_4","KSSV_Victoria_Weimar_3",null,"SG_Rotation_Tannroda_1",null,"Alle_Staffeln_Pokal"]
["KSSV_Victoria_Weimar_1","BSV_04_Bad_Berka_F2","ZLSG_Wormstedt_5",null,"KSSV_Victoria_Weimar_1"]
["Medizin_Blankenhain_1","Medizin_Blankenhain_2","Weimarer_SV_2",null,"Medizin_Blankenhain_1"]
["TTC_Rotation_Weimar_V1","TTC_Rotation_Weimar_V3","Weimarer_SV_1",null,"TTC_Rotation_Weimar_V1"]
["Fort._Großschwabhausen_1","SG_Rotation_Tannroda_2","TSG_Apolda_2",null,"Fort._Großschwabhausen_1"]
["TSV_1914_Berlstedt_1","ZLSG_Wormstedt_3","TTC_Rotation_Weimar_V4",null,"TSV_1914_Berlstedt_1"]
[null,null,"Fort._Großschwabhausen_4",null,"TSV_1914_Berlstedt_2"]
[null,null,"SG_Rot._Tannroda_3",null,"Fort._Großschwabhausen_2"]
[null,null,null,null,"KSSV_Victoria_Weimar_2"]
[null,null,null,null,"TTC_Rotation_Weimar_V2"]
[null,null,null,null,"ZLSG_Wormstedt_4"]
[null,null,null,null,"BSV_04_Bad_Berka_F2"]
[null,null,null,null,"Medizin_Blankenhain_2"]
[null,null,null,null,"TTC_Rotation_Weimar_V3"]
[null,null,null,null,"SG_Rotation_Tannroda_2"]
[null,null,null,null,"ZLSG_Wormstedt_3"]
[null,null,null,null,"TSV_1914_Berlstedt_3"]
[null,null,null,null,"Fort._Großschwabhausen_3"]
[null,null,null,null,"TTC_Rotation_Weimar_V5"]
[null,null,null,null,"BSV_04_Bad_Berka_F3"]
[null,null,null,null,"KSSV_Victoria_Weimar_3"]
[null,null,null,null,"ZLSG_Wormstedt_5"]
[null,null,null,null,"Weimarer_SV_2"]
[null,null,null,null,"Weimarer_SV_1"]
[null,null,null,null,"TSG_Apolda_2"]
[null,null,null,null,"TTC_Rotation_Weimar_V4"]
[null,null,null,null,"Fort._Großschwabhausen_4"]
[null,null,null,null,"SG_Rot._Tannroda_3"]

{"sheet":"Spielerzuordnung","index":5,"n_rows":401,"n_cols":6,"rows_kept":401,"cut":false,"hidden":true,"merged":[]}
["Name",null,"Koeff.","Verein"]
[null,null,null,null,null,"BSV_04_Bad_Berka_F1"]
["Kallenbach, Rainer",null,"BL","BSV_04_Bad_Berka_F1",null,{"$f":"A3&B3&\" :\"&LEFT(C3,10)","v":"Kallenbach, Rainer :BL"}]
["Hawlicki, Martin",null,2.96,"BSV_04_Bad_Berka_F1",null,{"$f":"A4&B4&\" :\"&LEFT(C4,10)","v":"Hawlicki, Martin :2,96"}]
["Köhler, Martin",null,2.8839999999999999,"BSV_04_Bad_Berka_F1",null,"Köhler, Martin :2,884"]
["Wollmann, Dirk",null,1.538,"BSV_04_Bad_Berka_F1",null,"Wollmann, Dirk :1,538"]
["Pappenberg, Jan",null,1.371,"BSV_04_Bad_Berka_F1",null,"Pappenberg, Jan :1,371"]
["König, Thomas",null,1.333,"BSV_04_Bad_Berka_F1",null,"König, Thomas :1,333"]
["Ersatz1",null,null,null,null,{"$f":"A9&B9&\" :\"&LEFT(C9,10)","v":"Ersatz1 :"}]
["Ersatz2",null,null,null,null,{"$f":"A10&B10&\" :\"&LEFT(C10,10)","v":"Ersatz2 :"}]
["Ersatz3",null,null,null,null,"Ersatz3 :"]
["Ersatz4",null,null,null,null,"BSV_04_Bad_Berka_F2"]
["Arenswald, Ralf",null,"1,000 (1.L)","BSV_04_Bad_Berka_F2",null,"Arenswald, Ralf :1,000 (1.L"]
["Michel, Horst",null,2.625,"BSV_04_Bad_Berka_F2",null,"Michel, Horst :2,625"]
["Brückner, Oliver",null,2.5259999999999998,"BSV_04_Bad_Berka_F2",null,"Brückner, Oliver :2,526"]
["Quett, Noah",null,2.4620000000000002,"BSV_04_Bad_Berka_F2",null,"Quett, Noah :2,462"]
["Christ, Holger",null,2.3079999999999998,"BSV_04_Bad_Berka_F2",null,{"$f":"A17&B17&\" :\"&LEFT(C17,10)","v":"Christ, Holger :2,308"}]
["Grau, Mathias",null,1.6359999999999999,"BSV_04_Bad_Berka_F2",null,{"$f":"A18&B18&\" :\"&LEFT(C18,10)","v":"Grau, Mathias :1,636"}]
["Simon, Lennard",null,1.268,"BSV_04_Bad_Berka_F2",null,{"$f":"A19&B19&\" :\"&LEFT(C19,10)","v":"Simon, Lennard :1,268"}]
["Ersatz1",null,null,null,null,"Ersatz1 :"]
["Ersatz2",null,null,null,null,"Ersatz2 :"]
["Ersatz3",null,null,null,null,"Ersatz3 :"]
[null,null,null,null,null,"Fort._Großschwabhausen_1"]
["Nitsche, Frederik",null,4,"Fort._Großschwabhausen_1",null,"Nitsche, Frederik :4"]
["Grau, Kevin",null,3.3330000000000002,"Fort._Großschwabhausen_1",null,"Grau, Kevin :3,333"]
["Gröbl, Tino",null,2.1819999999999999,"Fort._Großschwabhausen_1",null,"Gröbl, Tino :2,182"]
["Dabelsteen, Frank",null,"3,373 (2.L)","Fort._Großschwabhausen_1",null,"Dabelsteen, Frank :3,373 (2.L"]
["Blume, Thomas",null,"2,468 (2.L)","Fort._Großschwabhausen_1",null,{"$f":"A28&B28&\" :\"&LEFT(C28,10)","v":"Blume, Thomas :2,468 (2.L"}]
["Ersatz1",null,null,null,null,"Ersatz1 :"]
["Ersatz2",null,null,null,null,"Ersatz2 :"]
["Ersatz3",null,null,null,null,"Ersatz3 :"]
["Ersatz4",null,null,null,null,"Ersatz4 :"]
[null,null,null,null,null,"Fortuna_Großschwabhausen_2"]
["Brückner, Jürgen",null,3.4670000000000001,"Fort._Großschwabhausen_2",null,"Brückner, Jürgen :3,467"]
["Luu, Dung",null,2.5190000000000001,"Fort._Großschwabhausen_2",null,"Luu, Dung :2,519"]
["Wenke, Wolfram",null,1.714,"Fort._Großschwabhausen_2",null,"Wenke, Wolfram :1,714"]
["Brückner, Steffen",null,0.86299999999999999,"Fort._Großschwabhausen_2",null,"Brückner, Steffen :0,863"]
["Ersatz1",null,null,"Fort._Großschwabhausen_2",null,"Ersatz1 :"]
["Ersatz2",null,null,"Fort._Großschwabhausen_2",null,"Ersatz2 :"]
["Ersatz3",null,null,"Fort._Großschwabhausen_2",null,"Ersatz3 :"]
[null,null,null,null,null,"Medizin_Blankenhain_1"]
["Wapner, Achim",null,2.5259999999999998,"Medizin_Blankenhain_1",null,"Wapner, Achim :2,526"]
["Geißler (Malsch), Robert",null,2.4620000000000002,"Medizin_Blankenhain_1",null,"Geißler (Malsch), Robert :2,462"]
["Klein, Irene",null,1.1759999999999999,"Medizin_Blankenhain_1",null,"Klein, Irene :1,176"]
["Grau, Detlef",null,0.96,"Medizin_Blankenhain_1",null,{"$f":"A45&B45&\" :\"&LEFT(C45,10)","v":"Grau, Detlef :0,96"}]
["Eckardt, Hans-Peter",null,0.82399999999999995,"Medizin_Blankenhain_1",null,"Eckardt, Hans-Peter :0,824"]
["Schramke, Michael",null,0.26700000000000002,null,null,{"$f":"A47&B47&\" :\"&LEFT(C47,10)","v":"Schramke, Michael :0,267"}]
["Ersatz1",null," ","Medizin_Blankenhain_1",null,"Ersatz1 : "]
["Ersatz2",null,null,"Medizin_Blankenhain_1",null,"Ersatz2 :"]
["Ersatz3",null,null,"Medizin_Blankenhain_1",null,"Ersatz3 :"]
["Ersatz4",null,null,"Medizin_Blankenhain_1",null,"Ersatz4 :"]
[null,null,null,null,null,"SG_Rotation_Tannroda_2"]
["Süß, Ronald",null,2.968,"SG_Rotation_Tannroda_2",null,"Süß, Ronald :2,968"]
["Wattenbach, Klaus",null,1.857,"SG_Rotation_Tannroda_2",null,"Wattenbach, Klaus :1,857"]
["Schwager, Matthias",null,1.429,"SG_Rotation_Tannroda_2",null,"Schwager, Matthias :1,429"]
["Michaelis, Jörg",null,"2,933 (3.L)","SG_Rotation_Tannroda_2",null,"Michaelis, Jörg :2,933 (3.L"]
["Ersatz1",null,null,"SG_Rotation_Tannroda_2",null,"Ersatz1 :"]
["Ersatz2",null,null,"SG_Rotation_Tannroda_2",null,"Ersatz2 :"]
["Ersatz3",null,null,"SG_Rotation_Tannroda_2",null,"Ersatz3 :"]
["Ersatz4",null,null,"SG_Rotation_Tannroda_2",null,"Ersatz4 :"]
[null,null,null,null,null,"SG_Rotation_Tannroda_1"]
["Wedekind, Frederick",null,3.1629999999999998,"SG_Rotation_Tannroda_1",null,"Wedekind, Frederick :3,163"]
["Singer, Nicklas",null,2.7370000000000001,"SG_Rotation_Tannroda_1",null,"Singer, Nicklas :2,737"]
["Gehrhardt, Christoph",null,2.1179999999999999,"SG_Rotation_Tannroda_1",null,"Gehrhardt, Christoph :2,118"]
["Mendler, Uwe",null,1.913,"SG_Rotation_Tannroda_1",null,"Mendler, Uwe :1,913"]
["Ersatz1",null,null,"SG_Rotation_Tannroda_1",null,"Ersatz1 :"]
["Ersatz2",null,null,"SG_Rotation_Tannroda_1",null,"Ersatz2 :"]
["Ersatz3",null,null,"SG_Rotation_Tannroda_1",null,"Ersatz3 :"]
["Ersatz4",null,null,"SG_Rotation_Tannroda_1",null,"Ersatz4 :"]
[null,null,null,null,null,"TSG_Apolda_1"]
["Seifarth Siegfried",null,1.7,"TSG_Apolda_1",null,"Seifarth Siegfried :1,7"]
["Trepanowski, Jürgen",null,1.1279999999999999,"TSG_Apolda_1",null,"Trepanowski, Jürgen :1,128"]
["Knobloch, Dirk",null,0.92300000000000004,"TSG_Apolda_1",null,"Knobloch, Dirk :0,923"]
["Weller, Siegfried",null,0,"TSG_Apolda_1",null,"Weller, Siegfried :0"]
["Ersatz1",null,null,"TSG_Apolda_1",null,{"$f":"A75&B75&\" :\"&LEFT(C75,10)","v":"Ersatz1 :"}]
["Ersatz2",null,null,"TSG_Apolda_1",null,"Ersatz2 :"]
["Ersatz3",null,null,"TSG_Apolda_1",null,"Ersatz3 :"]
["Ersatz4",null,null,"TSG_Apolda_1",null,"Ersatz4 :"]
[null,null,null,null,null,"TSV_1914_Berlstedt_1"]
["Danzer, Stefan",null,3,"TSV_1914_Berlstedt_1",null,{"$f":"A80&B80&\" :\"&LEFT(C80,10)","v":"Danzer, Stefan :3"}]
["Schröter, Jörg",null,2.2400000000000002,"TSV_1914_Berlstedt_1",null,"Schröter, Jörg :2,24"]
["Knobloch, Michael",null,2.1819999999999999,"TSV_1914_Berlstedt_1",null,"Knobloch, Michael :2,182"]
["Pfaffe,  Wolfgang",null,1.829,"TSV_1914_Berlstedt_1",null,"Pfaffe,  Wolfgang :1,829"]
["Smuda von Trzebiatowski, Paul",null,"3,412 (2.L)","TSV_1914_Berlstedt_1",null,{"$f":"A84&B84&\" :\"&LEFT(C84,10)","v":"Smuda von Trzebiatowski, Paul :3,412 (2.L"}]
["Ersatz1",null,null,"TSV_1914_Berlstedt_1",null,"Ersatz1 :"]
["Ersatz2",null,null,"TSV_1914_Berlstedt_1",null,"Ersatz2 :"]
["Ersatz3",null,null,"TSV_1914_Berlstedt_1",null,"Ersatz3 :"]
["Ersatz4",null,null,"TSV_1914_Berlstedt_1",null,"Ersatz4 :"]
[null,null,null,null,null,"TTC_Rotation_Weimar_V1"]
["Griehl, Clara",null,3.25,"TTC_Rotation_Weimar_V1",null,{"$f":"A90&B90&\" :\"&LEFT(C90,10)","v":"Griehl, Clara :3,25"}]
["Klenner, Thomas",null,2.9,"TTC_Rotation_Weimar_V1",null,"Klenner, Thomas :2,9"]
["Schöne, Georg",null,2.8439999999999999,"TTC_Rotation_Weimar_V1",null,"Schöne, Georg :2,844"]
["Erler, Nick",null,2.7690000000000001,"TTC_Rotation_Weimar_V1",null,{"$f":"A93&B93&\" :\"&LEFT(C93,10)","v":"Erler, Nick :2,769"}]
["Schulz, Astrid",null,1.655,"TTC_Rotation_Weimar_V1",null,{"$f":"A94&B94&\" :\"&LEFT(C94,10)","v":"Schulz, Astrid :1,655"}]
["Burschberg, Swen",null,1.647,"TTC_Rotation_Weimar_V1",null,{"$f":"A95&B95&\" :\"&LEFT(C95,10)","v":"Burschberg, Swen :1,647"}]
["Ersatz1",null,null,"TTC_Rotation_Weimar_V1",null,"Ersatz1 :"]
["Ersatz2",null,null,"TTC_Rotation_Weimar_V1",null,"Ersatz2 :"]
["Ersatz3",null,null,"TTC_Rotation_Weimar_V1",null,"Ersatz3 :"]
[null,null,null,null,null,"Weimarer_SV_1"]
["Scholz, Ronny",null,2.25,"Weimarer_SV_1",null,{"$f":"A100&B100&\" :\"&LEFT(C100,10)","v":"Scholz, Ronny :2,25"}]
["Geburtig, Gerd",null,0.5,"Weimarer_SV_1",null,"Geburtig, Gerd :0,5"]
["Barth, Thomas",null,"2,000 (4.L)","Weimarer_SV_1",null,"Barth, Thomas :2,000 (4.L"]
["Mohr, Michael",null,"0,970 (4.L)","Weimarer_SV_1",null,"Mohr, Michael :0,970 (4.L"]
["Ersatz1",null,null,null,null,"Ersatz1 :"]
["Ersatz2",null,null,null,null,"Ersatz2 :"]
["Ersatz3",null,null,null,null,"Ersatz3 :"]
[null,null,null,null,null,"BSV_04_Bad_Berka_F3"]
["Plomitzer, Manfred",null,"0,571 (2.L)","BSV_04_Bad_Berka_F3",null,{"$f":"A108&B108&\" :\"&LEFT(C108,10)","v":"Plomitzer, Manfred :0,571 (2.L"}]
["Ungethüm, Philipp",null,"0,200 (2.L)","BSV_04_Bad_Berka_F3",null,"Ungethüm, Philipp :0,200 (2.L"]
["Klos, Heiko",null,"3,143 (4.L)","BSV_04_Bad_Berka_F3",null,"Klos, Heiko :3,143 (4.L"]
["Marr, Klaus",null,"2,323 (4.L)","BSV_04_Bad_Berka_F3",null,"Marr, Klaus :2,323 (4.L"]
["Fischer, Thomas",null,"2,000 (4.L)","BSV_04_Bad_Berka_F3",null,"Fischer, Thomas :2,000 (4.L"]
["Niebling, Holger",null,"0,870 (4.L)","BSV_04_Bad_Berka_F3",null,"Niebling, Holger :0,870 (4.L"]
["Graf, Siegfried",null,"0,000 (4.L)","BSV_04_Bad_Berka_F3",null,"Graf, Siegfried :0,000 (4.L"]
["Prokopp, Sebastian",null,"0,000 (4.L)","BSV_04_Bad_Berka_F3",null,"Prokopp, Sebastian :0,000 (4.L"]
["Ersatz1",null,null,"BSV_04_Bad_Berka_F3",null,"Ersatz1 :"]
["Ersatz2",null,null,"BSV_04_Bad_Berka_F3",null,"Ersatz2 :"]
["Ersatz3",null,null,"BSV_04_Bad_Berka_F3",null,"Ersatz3 :"]
[null,null,null,null,null,"Fort._Großschwabhausen_3"]
["Schröder, Bertold",null,"1,021 (2.L)","Fort._Großschwabhausen_3",null,{"$f":"A120&B120&\" :\"&LEFT(C120,10)","v":"Schröder, Bertold :1,021 (2.L"}]
["Löschner, Dominik",null,"0,125 (2.L)","Fort._Großschwabhausen_3",null,"Löschner, Dominik :0,125 (2.L"]
["Albert, Dieter",null,"1,538 (4.L)","Fort._Großschwabhausen_3",null,"Albert, Dieter :1,538 (4.L"]
["König, Alexa",null,"0,000 (4.L)","Fort._Großschwabhausen_3",null,"König, Alexa :0,000 (4.L"]
["Ersatz1",null,null,"Fort._Großschwabhausen_3",null,"Ersatz1 :"]
["Ersatz2",null,null,"Fort._Großschwabhausen_3",null,"Ersatz2 :"]
["Ersatz3",null,null,"Fort._Großschwabhausen_3",null,"Ersatz3 :"]
["Ersatz4",null,null,null,null,"Ersatz4 :"]
[null,null,null,null,null,"KSSV_Victoria_Weimar_1"]
["Große, Andreas",null,"4,000 (2.L)","KSSV_Victoria_Weimar_1",null,{"$f":"A129&B129&\" :\"&LEFT(C129,10)","v":"Große, Andreas :4,000 (2.L"}]
["Peter, Frank",null,"2,545 (2.L)","KSSV_Victoria_Weimar_1",null,"Peter, Frank :2,545 (2.L"]
["Herold, Michael",null,"2,462 (2.L)","KSSV_Victoria_Weimar_1",null,"Herold, Michael :2,462 (2.L"]
["Pfundheller, Felix",null,"2,444 (2.L)","KSSV_Victoria_Weimar_1",null,"Pfundheller, Felix :2,444 (2.L"]
["Ersatz1",null,null,"KSSV_Victoria_Weimar_1",null,"Ersatz1 :"]
["Ersatz2",null,null,"KSSV_Victoria_Weimar_1",null,"Ersatz2 :"]
["Ersatz3",null,null,"KSSV_Victoria_Weimar_1",null,"Ersatz3 :"]
["Ersatz4",null,null,"KSSV_Victoria_Weimar_1",null,"Ersatz4 :"]
[null,null,null,null,null,"TSV_1914_Berlstedt_2"]
["Benkenstein, Andreas",null,2.1619999999999999,"TSV_1914_Berlstedt_2",null,{"$f":"A138&B138&\" :\"&LEFT(C138,10)","v":"Benkenstein, Andreas :2,162"}]
["Rau, Johann",null,1.8460000000000001,"TSV_1914_Berlstedt_2",null,"Rau, Johann :1,846"]
["Berger, Gerrit",null,1.714,"TSV_1914_Berlstedt_2",null,"Berger, Gerrit :1,714"]
["Horak, Ron",null,1.3879999999999999,"TSV_1914_Berlstedt_2",null,"Horak, Ron :1,388"]
["Hochstein, Andreas",null,1.143,"TSV_1914_Berlstedt_2",null,{"$f":"A142&B142&\" :\"&LEFT(C142,10)","v":"Hochstein, Andreas :1,143"}]
["Ersatz1",null,null,"TSV_1914_Berlstedt_2",null,"Ersatz1 :"]
["Ersatz2",null,null,"TSV_1914_Berlstedt_2",null,"Ersatz2 :"]
["Ersatz3",null,null,"TSV_1914_Berlstedt_2",null,"Ersatz3 :"]
[null,null,null,null,null,"TTC_Rotation_Weimar_V2"]
["Pospich , Michael",null,"2,345 (1.L)","TTC_Rotation_Weimar_V2",null,{"$f":"A147&B147&\" :\"&LEFT(C147,10)","v":"Pospich , Michael :2,345 (1.L"}]
["Trautwein, Sven",null,"0,500 (1.L)","TTC_Rotation_Weimar_V2",null,"Trautwein, Sven :0,500 (1.L"]
["Würzburg, Martin",null,2.7879999999999998,"TTC_Rotation_Weimar_V2",null,"Würzburg, Martin :2,788"]
["Steinkamp, Bernd",null,2.359,"TTC_Rotation_Weimar_V2",null,"Steinkamp, Bernd :2,359"]
["Facius, Tino",null,2.0510000000000002,"TTC_Rotation_Weimar_V2",null,"Facius, Tino :2,051"]
["Götze, Martin",null,1.6,"TTC_Rotation_Weimar_V2",null,"Götze, Martin :1,6"]
["Bischof, Knut",null,0.8,"TTC_Rotation_Weimar_V2",null,{"$f":"A153&B153&\" :\"&LEFT(C153,10)","v":"Bischof, Knut :0,8"}]
["Vinz, Thomas",null,0,"TTC_Rotation_Weimar_V2",null,{"$f":"A154&B154&\" :\"&LEFT(C154,10)","v":"Vinz, Thomas :0"}]
["Ersatz1",null,null,"TTC_Rotation_Weimar_V2",null,"Ersatz1 :"]
["Ersatz2",null,null,"TTC_Rotation_Weimar_V2",null,"Ersatz2 :"]
["Ersatz3",null,null,"TTC_Rotation_Weimar_V2",null,"Ersatz3 :"]
[null,null,null,null,null,"Medizin_Blankenhain_2"]
["Kirchhof, Kurt",null,"3,034 (3.L)","Medizin_Blankenhain_2",null,{"$f":"A159&B159&\" :\"&LEFT(C159,10)","v":"Kirchhof, Kurt :3,034 (3.L"}]
["Taubert, Anja",null,"2,667 (3.L)","Medizin_Blankenhain_2",null,"Taubert, Anja :2,667 (3.L"]
["Huskobla, Maik",null,"2,424 (3.L)","Medizin_Blankenhain_2",null,"Huskobla, Maik :2,424 (3.L"]
["Kunze-Mroz, Stephan",null,"1,765 (3.L)","Medizin_Blankenhain_2",null,"Kunze-Mroz, Stephan :1,765 (3.L"]
["Taubert, Marina",null,"1,000 (4.L20/21)","Medizin_Blankenhain_2",null,"Taubert, Marina :1,000 (4.L"]
["Jaranowski, Klaus",null,0,"Medizin_Blankenhain_2",null,"Jaranowski, Klaus :0"]
["van Elsen, Laurel",null,0,"Medizin_Blankenhain_2",null,"van Elsen, Laurel :0"]
["Römer, Mike",null,0,"Medizin_Blankenhain_2",null,"Römer, Mike :0"]
["Ersatz1",null,null,"Medizin_Blankenhain_2",null,"Ersatz1 :"]
["Ersatz2",null,null,"Medizin_Blankenhain_2",null,"Ersatz2 :"]
["Ersatz3",null,null,"Medizin_Blankenhain_2",null,"Ersatz3 :"]
[null,null,null,null,null,"ZLSG_Wormstedt_1"]
["Kuhn , Andreas",null,2.72,"ZLSG_Wormstedt_1",null,{"$f":"A171&B171&\" :\"&LEFT(C171,10)","v":"Kuhn , Andreas :2,72"}]
["Kirchhoff, Michael",null,2.5219999999999998,"ZLSG_Wormstedt_1",null,"Kirchhoff, Michael :2,522"]
["Lapp, Jens",null,"3,067 (2.L)","ZLSG_Wormstedt_1",null,"Lapp, Jens :3,067 (2.L"]
["Richter, Andreas",null,"2,256 (2.L)","ZLSG_Wormstedt_1",null,"Richter, Andreas :2,256 (2.L"]
["Ersatz1",null,null,"ZLSG_Wormstedt_1",null,"Ersatz1 :"]
["Ersatz2",null,null,"ZLSG_Wormstedt_1",null,"Ersatz2 :"]
["Ersatz3",null,null,"ZLSG_Wormstedt_1",null,"Ersatz3 :"]
["Ersatz4",null,null,"ZLSG_Wormstedt_1",null,"Ersatz4 :"]
[null,null,null,null,null,"ZLSG_Wormstedt_2"]
["Schmidt-Apel, Heiko",null,2.3330000000000002,"ZLSG_Wormstedt_2",null,{"$f":"A180&B180&\" :\"&LEFT(C180,10)","v":"Schmidt-Apel, Heiko :2,333"}]
["Pietsch, Sebastian",null,2.1179999999999999,"ZLSG_Wormstedt_2",null,"Pietsch, Sebastian :2,118"]
["Krug, Norman",null,"2,188 (2.L)","ZLSG_Wormstedt_2",null,"Krug, Norman :2,188 (2.L"]
["Dr. Wolter, Wolfgang",null,"3,733 (3.L)","ZLSG_Wormstedt_2",null,"Dr. Wolter, Wolfgang :3,733 (3.L"]
["Ersatz1",null,null,"ZLSG_Wormstedt_2",null,"Ersatz1 :"]
["Ersatz2",null,null,"ZLSG_Wormstedt_2",null,"Ersatz2 :"]
["Ersatz3",null,null,"ZLSG_Wormstedt_2",null,"Ersatz3 :"]
[null,null,null,null,null,"Fort._Großschwabhausen_4"]
["Grau, Diethard",null,"3,832 (4.L)","Fort._Großschwabhausen_4",null,{"$f":"A188&B188&\" :\"&LEFT(C188,10)","v":"Grau, Diethard :3,832 (4.L"}]
["Voigt, Lukas",null,"2,000 (4.L 20/21)","Fort._Großschwabhausen_4",null,"Voigt, Lukas :2,000 (4.L"]
["Niemeyer, Gerd",null,"1,800 (4.L)","Fort._Großschwabhausen_4",null,"Niemeyer, Gerd :1,800 (4.L"]
["Dobschal, Jürgen",null,"1,778 (4.L)","Fort._Großschwabhausen_4",null,"Dobschal, Jürgen :1,778 (4.L"]
["Köhler, Lothar",null,"1,294 (4.L)","Fort._Großschwabhausen_4",null,"Köhler, Lothar :1,294 (4.L"]
["Mehner, Thomas",null,"0,000 (4.L)","Fort._Großschwabhausen_4",null,"Mehner, Thomas :0,000 (4.L"]
["Thümmel, Maik",null,"0,000 (4.L)","Fort._Großschwabhausen_4",null,"Thümmel, Maik :0,000 (4.L"]
["Krause, Hartmut",null,"0,000 (4.L)","Fort._Großschwabhausen_4",null,"Krause, Hartmut :0,000 (4.L"]
["Kühlenz, Kai",null,"0,000 (4.L)","Fort._Großschwabhausen_4",null,{"$f":"A196&B196&\" :\"&LEFT(C196,10)","v":"Kühlenz, Kai :0,000 (4.L"}]
["Albert, Karin",null,"0,000 (4.L)","Fort._Großschwabhausen_4",null,"Albert, Karin :0,000 (4.L"]
["Hänsgen, Marcel",null,"0,000 (4.L)","Fort._Großschwabhausen_4",null,"Hänsgen, Marcel :0,000 (4.L"]
["Schulze-Sandow, Holger",null,"0,000 (4.L)","Fort._Großschwabhausen_4",null,{"$f":"A199&B199&\" :\"&LEFT(C199,10)","v":"Schulze-Sandow, Holger :0,000 (4.L"}]
["Böhmer, Benjamin",null,"0,000 (4.L)","Fort._Großschwabhausen_4",null,{"$f":"A200&B200&\" :\"&LEFT(C200,10)","v":"Böhmer, Benjamin :0,000 (4.L"}]
["Kizak, Jan",null,"0,000 (4.L)","Fort._Großschwabhausen_4",null,{"$f":"A201&B201&\" :\"&LEFT(C201,10)","v":"Kizak, Jan :0,000 (4.L"}]
["Ersatz1",null,null,"Fort._Großschwabhausen_4",null,"Ersatz1 :"]
["Ersatz2",null,null,"Fort._Großschwabhausen_4",null,"Ersatz2 :"]
["Ersatz3",null,null,"Fort._Großschwabhausen_4",null,"Ersatz3 :"]
[null,null,null,null,null,"BSV_04_Bad_Berka_F4"]
[null,null,null,"BSV_04_Bad_Berka_F4",null," :"]
[null,null,null,"BSV_04_Bad_Berka_F4",null," :"]
[null,null,null,"BSV_04_Bad_Berka_F4",null," :"]
[null,null,null,"BSV_04_Bad_Berka_F4",null," :"]
[null,null,null,"BSV_04_Bad_Berka_F4",null," :"]
[null,null,null,"BSV_04_Bad_Berka_F4",null," :"]
[null,null,null,"BSV_04_Bad_Berka_F4",null," :"]
[null,null,null,"BSV_04_Bad_Berka_F4",null,{"$f":"A213&B213&\" :\"&LEFT(C213,10)","v":" :"}]
[null,null,null,"BSV_04_Bad_Berka_F4",null,{"$f":"A214&B214&\" :\"&LEFT(C214,10)","v":" :"}]
[null,null,null,"BSV_04_Bad_Berka_F4",null,{"$f":"A215&B215&\" :\"&LEFT(C215,10)","v":" :"}]
[null,null,0,"BSV_04_Bad_Berka_F4",null,{"$f":"A216&B216&\" :\"&LEFT(C216,10)","v":" :0"}]
["Ersatz1",null,null,"BSV_04_Bad_Berka_F4",null,"Ersatz1 :"]
[null,null,null,null,null,"TTC_Rotation_Weimar_V4"]
["Zsoldos, Attila",null,2.133,"TTC_Rotation_Weimar_V4",null,"Zsoldos, Attila :2,133"]
["Schachert, Hans Werner",null,1.4,"TTC_Rotation_Weimar_V4",null,"Schachert, Hans Werner :1,4"]
["Rhiel , Martin",null,0.66700000000000004,"TTC_Rotation_Weimar_V4",null,"Rhiel , Martin :0,667"]
["Ludwig , Ralf",null,0,"TTC_Rotation_Weimar_V4",null,"Ludwig , Ralf :0"]
["Mann, Johannes",null,"3,4 (4.L)","TTC_Rotation_Weimar_V4",null,"Mann, Johannes :3,4 (4.L)"]
["Baumbach, Kurt",null,0,"TTC_Rotation_Weimar_V4",null,"Baumbach, Kurt :0"]
["Ayaini, Ahmad",null,0,"TTC_Rotation_Weimar_V4",null,{"$f":"A225&B225&\" :\"&LEFT(C225,10)","v":"Ayaini, Ahmad :0"}]
["Dutschke, Manuel",null,0,"TTC_Rotation_Weimar_V4",null,{"$f":"A226&B226&\" :\"&LEFT(C226,10)","v":"Dutschke, Manuel :0"}]
["Ersatz1",null,null,"TTC_Rotation_Weimar_V4",null,"Ersatz1 :"]
["Ersatz2",null,null,"TTC_Rotation_Weimar_V4",null,"Ersatz2 :"]
["Ersatz3",null,null,"TTC_Rotation_Weimar_V4",null,"Ersatz3 :"]
[null,null,null,null,null,"ZLSG_Wormstedt_3"]
["Fehre, Jürgen",null,2.4,"ZLSG_Wormstedt_3",null,"Fehre, Jürgen :2,4"]
["Karst, Daniel",null,1.9259999999999999,"ZLSG_Wormstedt_3",null,"Karst, Daniel :1,926"]
["Sachs, Michael",null,1.556,"ZLSG_Wormstedt_3",null,"Sachs, Michael :1,556"]
["Dill, Olaf",null,1.2729999999999999,"ZLSG_Wormstedt_3",null,"Dill, Olaf :1,273"]
["Ersatz1",null,null,"ZLSG_Wormstedt_3",null,"Ersatz1 :"]
["Ersatz2",null,null,"ZLSG_Wormstedt_3",null,"Ersatz2 :"]
["Ersatz3",null,null,"ZLSG_Wormstedt_3",null,"Ersatz3 :"]
[null,null,null,null,null,"KSSV_Victoria_Weimar_2"]
["Vogler, Ralph",null,"2,316 (3.L)","KSSV_Victoria_Weimar_2",null,"Vogler, Ralph :2,316 (3.L"]
["Sitz, Susanne",null,"2,267 (3.L)","KSSV_Victoria_Weimar_2",null,"Sitz, Susanne :2,267 (3.L"]
["Putz, Andreas",null,"2,194 (3.L)","KSSV_Victoria_Weimar_2",null,"Putz, Andreas :2,194 (3.L"]
["Gerhardt, Uwe",null,"3,111 (4.L)","KSSV_Victoria_Weimar_2",null,"Gerhardt, Uwe :3,111 (4.L"]
["Findeis, Robert",null,0,"KSSV_Victoria_Weimar_2",null,{"$f":"A243&B243&\" :\"&LEFT(C243,10)","v":"Findeis, Robert :0"}]
["Ersatz1",null,null,"KSSV_Victoria_Weimar_2",null,"Ersatz1 :"]
["Ersatz2",null,null,"KSSV_Victoria_Weimar_2",null,"Ersatz2 :"]
["Ersatz3",null,null,"KSSV_Victoria_Weimar_2",null,"Ersatz3 :"]
[" ",null,null,null,null,"TSV_1914_Berlstedt_4"]
[null,null,null,"TSV_1914_Berlstedt_4",null," :"]
[null,null,null,"TSV_1914_Berlstedt_4",null," :"]
[null,null,null,"TSV_1914_Berlstedt_4",null," :"]
[null,null,null,"TSV_1914_Berlstedt_4",null," :"]
[null,null,null,"TSV_1914_Berlstedt_4",null," :"]
[null,null,null,"TSV_1914_Berlstedt_4",null," :"]
[null,null,null,"TSV_1914_Berlstedt_4",null," :"]
[null,null,null,"TSV_1914_Berlstedt_4",null," :"]
[null,null,null,"TSV_1914_Berlstedt_4",null,{"$f":"A256&B256&\" :\"&LEFT(C256,10)","v":" :"}]
[null,null,null,"TSV_1914_Berlstedt_4",null,{"$f":"A257&B257&\" :\"&LEFT(C257,10)","v":" :"}]
[null,null,null,"TSV_1914_Berlstedt_4",null,{"$f":"A258&B258&\" :\"&LEFT(C258,10)","v":" :"}]
[null,null,null,"TSV_1914_Berlstedt_4",null,{"$f":"A259&B259&\" :\"&LEFT(C259,10)","v":" :"}]
[null,null,null,"TSV_1914_Berlstedt_4",null,{"$f":"A260&B260&\" :\"&LEFT(C260,10)","v":" :"}]
[null,null,0,"TSV_1914_Berlstedt_4",null," :0"]
[null,null,0,"TSV_1914_Berlstedt_4",null,{"$f":"A262&B262&\" :\"&LEFT(C262,10)","v":" :0"}]
["Ersatz 1",null,null,"TSV_1914_Berlstedt_4",null,"Ersatz 1 :"]
[]
[null,null,null,null,null,"SG_Rot._Tannroda_3"]
["Singer, Franziska",null,1.8819999999999999,"SG_Rot._Tannroda_3",null,{"$f":"A266&B266&\" :\"&LEFT(C266,10)","v":"Singer, Franziska :1,882"}]
["Scharf, Helmut",null,1.667,"SG_Rot._Tannroda_3",null,"Scharf, Helmut :1,667"]
["Großkunze, Kai",null,0.55200000000000005,"SG_Rot._Tannroda_3",null,"Großkunze, Kai :0,552"]
["Großkunze, Tim",null,"1,273 (4.L)","SG_Rot._Tannroda_3",null,{"$f":"A269&B269&\" :\"&LEFT(C269,10)","v":"Großkunze, Tim :1,273 (4.L"}]
["Backhaus, Conrad",null,"1,067 (4.L)","SG_Rot._Tannroda_3",null,{"$f":"A270&B270&\" :\"&LEFT(C270,10)","v":"Backhaus, Conrad :1,067 (4.L"}]
["Wedekind, Jens",null,"1,053 (4.L)","SG_Rot._Tannroda_3",null,{"$f":"A271&B271&\" :\"&LEFT(C271,10)","v":"Wedekind, Jens :1,053 (4.L"}]
["Backhaus, Thomas",null,"0,667 (4.L)","SG_Rot._Tannroda_3",null,{"$f":"A272&B272&\" :\"&LEFT(C272,10)","v":"Backhaus, Thomas :0,667 (4.L"}]
["Großkunze, Tabea",null,"0,000 (4.L)","SG_Rot._Tannroda_3",null,"Großkunze, Tabea :0,000 (4.L"]
["Ersatz1",null,null,"SG_Rot._Tannroda_3",null,"Ersatz1 :"]
["Ersatz2",null,null,"SG_Rot._Tannroda_3",null,"Ersatz2 :"]
["Ersatz3",null,null,"SG_Rot._Tannroda_3",null,"Ersatz3 :"]
[null,null,null,null,null,"TSV_1914_Berlstedt_3"]
["Mendel, Jürgen",null,"1,029 (2.L)","TSV_1914_Berlstedt_3",null,{"$f":"A278&B278&\" :\"&LEFT(C278,10)","v":"Mendel, Jürgen :1,029 (2.L"}]
["Oswald, Jens-Uwe",null,"2,419 (4.L)","TSV_1914_Berlstedt_3",null,"Oswald, Jens-Uwe :2,419 (4.L"]
["Maletz, Virginia",null,"2,133 (4.L 19/20)","TSV_1914_Berlstedt_3",null,{"$f":"A280&B280&\" :\"&LEFT(C280,10)","v":"Maletz, Virginia :2,133 (4.L"}]
["Marth, Uwe",null,"1,641 (4.L)","TSV_1914_Berlstedt_3",null,"Marth, Uwe :1,641 (4.L"]
["Seidemann, Heiko",null,"0,000 (4.L)","TSV_1914_Berlstedt_3",null,{"$f":"A282&B282&\" :\"&LEFT(C282,10)","v":"Seidemann, Heiko :0,000 (4.L"}]
["Müller, Hans-Georg",null,"0,000 (4.L)","TSV_1914_Berlstedt_3",null,{"$f":"A283&B283&\" :\"&LEFT(C283,10)","v":"Müller, Hans-Georg :0,000 (4.L"}]
["Rang, Uwe",null,"0,000 (4.L)","TSV_1914_Berlstedt_3",null,{"$f":"A284&B284&\" :\"&LEFT(C284,10)","v":"Rang, Uwe :0,000 (4.L"}]
["Götz, Alexander",null,"0,000 (4.L)","TSV_1914_Berlstedt_3",null,{"$f":"A285&B285&\" :\"&LEFT(C285,10)","v":"Götz, Alexander :0,000 (4.L"}]
["Lauberbach, Vivienne",null,"0,000 (4.L)","TSV_1914_Berlstedt_3",null,{"$f":"A286&B286&\" :\"&LEFT(C286,10)","v":"Lauberbach, Vivienne :0,000 (4.L"}]
["Estelle, Dosin",null,"0,000 (4.L)","TSV_1914_Berlstedt_3",null,"Estelle, Dosin :0,000 (4.L"]
["Strobach, Gina",null,"0,000 (4.L)","TSV_1914_Berlstedt_3",null,{"$f":"A288&B288&\" :\"&LEFT(C288,10)","v":"Strobach, Gina :0,000 (4.L"}]
["Ersatz1",null," ","TSV_1914_Berlstedt_3",null,"Ersatz1 : "]
["Ersatz3",null," ","TSV_1914_Berlstedt_3",null,"Ersatz3 : "]
["Ersatz4",null," ","TSV_1914_Berlstedt_3",null,"Ersatz4 : "]
[null,null,null,null,null,"TTC_Rotation_Weimar_V3"]
["Kiesel, Jakob",null,3.1110000000000002,"TTC_Rotation_Weimar_V3",null,{"$f":"A293&B293&\" :\"&LEFT(C293,10)","v":"Kiesel, Jakob :3,111"}]
["Seidt, Henning",null,"3,238 (3.L)","TTC_Rotation_Weimar_V3",null,"Seidt, Henning :3,238 (3.L"]
["Fink, Sascha",null,"2,727 (3.L)","TTC_Rotation_Weimar_V3",null,"Fink, Sascha :2,727 (3.L"]
["Löffler, Jörg",null,"1,787 (3.L)","TTC_Rotation_Weimar_V3",null,"Löffler, Jörg :1,787 (3.L"]
["Lott, Martin",null,0,"TTC_Rotation_Weimar_V3",null,"Lott, Martin :0"]
["Koloskow, Alexander",null,0,"TTC_Rotation_Weimar_V3",null,"Koloskow, Alexander :0"]
["Ersatz1",null,null,"TTC_Rotation_Weimar_V3",null,{"$f":"A299&B299&\" :\"&LEFT(C299,10)","v":"Ersatz1 :"}]
["Ersatz2",null,null,"TTC_Rotation_Weimar_V3",null,{"$f":"A300&B300&\" :\"&LEFT(C300,10)","v":"Ersatz2 :"}]
["Ersatz3",null,null,"TTC_Rotation_Weimar_V3",null,"Ersatz3 :"]
[null,null,null,null,null,"Medizin_Blankenhain_3"]
["Mager, Sascha",null,"3,111 (4.L)","KSSV_Victoria_Weimar_3",null,{"$f":"A303&B303&\" :\"&LEFT(C303,10)","v":"Mager, Sascha :3,111 (4.L"}]
["Weber, Bernhard",null,"1,943 (4.L)","KSSV_Victoria_Weimar_3",null,"Weber, Bernhard :1,943 (4.L"]
["Worms, Jürgen",null,"1,833 (4.L)","KSSV_Victoria_Weimar_3",null,"Worms, Jürgen :1,833 (4.L"]
["Maier, Lukas",null,"0,000 (4.L)","KSSV_Victoria_Weimar_3",null,"Maier, Lukas :0,000 (4.L"]
["Sauer, Silvia",null,"0,000 (4.L)","KSSV_Victoria_Weimar_3",null,"Sauer, Silvia :0,000 (4.L"]
["Bachmann, Veit",null,"0,000 (4.L)","KSSV_Victoria_Weimar_3",null,"Bachmann, Veit :0,000 (4.L"]
["Körpert, Reinhard",null,"0,000 (4.L)","KSSV_Victoria_Weimar_3",null,"Körpert, Reinhard :0,000 (4.L"]
["Täger, Steffen",null,"0,000 (4.L)","KSSV_Victoria_Weimar_3",null,"Täger, Steffen :0,000 (4.L"]
["Yalin, Murat",null,"0,000 (4.L)","KSSV_Victoria_Weimar_3",null,"Yalin, Murat :0,000 (4.L"]
["Seifert, Frank",null,"0,000 (4.L)","KSSV_Victoria_Weimar_3",null,"Seifert, Frank :0,000 (4.L"]
["Ersatz1",null,0,"KSSV_Victoria_Weimar_3",null,"Ersatz1 :0"]
["Ersatz2",null,null,"KSSV_Victoria_Weimar_3",null,{"$f":"A314&B314&\" :\"&LEFT(C314,10)","v":"Ersatz2 :"}]
["Ersatz3",null,null,"KSSV_Victoria_Weimar_3",null,"Ersatz3 :"]
[null,null,null,null,null,"TTC_Rotation_Weimar_V5"]
["Riese, Peter",null,"3,733 (4.L)","TTC Rotation Weimar V5",null,{"$f":"A317&B317&\" :\"&LEFT(C317,10)","v":"Riese, Peter :3,733 (4.L"}]
["Röske, Michael",null,"3,525 (4.L)","TTC Rotation Weimar V5",null,"Röske, Michael :3,525 (4.L"]
["Weisig, Stefan",null,"1,935 (4.L)","TTC Rotation Weimar V5",null,"Weisig, Stefan :1,935 (4.L"]
["Schley, Sabine",null,"0,762 (4.L)","TTC Rotation Weimar V5",null,"Schley, Sabine :0,762 (4.L"]
["Eckhardt, Cornelia",null,"0,000 (4.L)","TTC Rotation Weimar V5",null,"Eckhardt, Cornelia :0,000 (4.L"]
["Korrek, Gabriele",null,"0,000 (4.L)","TTC Rotation Weimar V5",null,{"$f":"A322&B322&\" :\"&LEFT(C322,10)","v":"Korrek, Gabriele :0,000 (4.L"}]
["Siefert, Edeltraud",null,"0,000 (4.L)","TTC Rotation Weimar V5",null,"Siefert, Edeltraud :0,000 (4.L"]
["Berg, Julia",null,"0,000 (4.L)","TTC Rotation Weimar V5",null,{"$f":"A324&B324&\" :\"&LEFT(C324,10)","v":"Berg, Julia :0,000 (4.L"}]
["Riese, Sven",null,"0,000 (4.L)","TTC Rotation Weimar V5",null,{"$f":"A325&B325&\" :\"&LEFT(C325,10)","v":"Riese, Sven :0,000 (4.L"}]
["Seel, Richards",null,"0,000 (4.L)","TTC Rotation Weimar V5",null,{"$f":"A326&B326&\" :\"&LEFT(C326,10)","v":"Seel, Richards :0,000 (4.L"}]
["Achermann, Sindy",null,"0,000 (4.L)","TTC Rotation Weimar V5",null,{"$f":"A327&B327&\" :\"&LEFT(C327,10)","v":"Achermann, Sindy :0,000 (4.L"}]
["Koch, Nils",null,"0,000 (4.L)","TTC Rotation Weimar V5",null,"Koch, Nils :0,000 (4.L"]
["Gribkowski, Luka",null,"0,000 (4.L)","TTC Rotation Weimar V5",null,"Gribkowski, Luka :0,000 (4.L"]
["Blatter, Paul",null,"0,000 (4.L)","TTC Rotation Weimar V5",null,"Blatter, Paul :0,000 (4.L"]
["Liebner, Susan",null,"0,000 (4.L)","TTC Rotation Weimar V5",null,{"$f":"A331&B331&\" :\"&LEFT(C331,10)","v":"Liebner, Susan :0,000 (4.L"}]
["Ersatz1",null,null,"TTC Rotation Weimar V5",null,{"$f":"A332&B332&\" :\"&LEFT(C332,10)","v":"Ersatz1 :"}]
[null,null,null,null,null,"Weimarer_SV_2"]
["Goreczny, Andrzej",null,"2,182 (3.L, 20/21)","Weimarer SV 2",null,{"$f":"A334&B334&\" :\"&LEFT(C334,10)","v":"Goreczny, Andrzej :2,182 (3.L"}]
["Große, Gerhard",null,"1,333 (3.L)","Weimarer SV 2",null,{"$f":"A335&B335&\" :\"&LEFT(C335,10)","v":"Große, Gerhard :1,333 (3.L"}]
["Vollmann, Ulrich",null,"3,200 (4.L, 20/21)","Weimarer SV 2",null,"Vollmann, Ulrich :3,200 (4.L"]
["Berndt, Manfred",null,"2,769 (4.L)","Weimarer SV 2",null,"Berndt, Manfred :2,769 (4.L"]
["Mohr, Hubert",null,"1,073 4.L)","Weimarer SV 2",null,"Mohr, Hubert :1,073 4.L)"]
["Scholz, Rene",null,"0,000 (4.L)","Weimarer SV 2",null,"Scholz, Rene :0,000 (4.L"]
["Kreibich, Thomas",null,"0,000 (4.L)","Weimarer SV 2",null,"Kreibich, Thomas :0,000 (4.L"]
["Heydrich, Manfred",null,"0,000 (4.L)","Weimarer SV 2",null,"Heydrich, Manfred :0,000 (4.L"]
["Liepsch, Klaus",null,"0,000 (4.L)","Weimarer SV 2",null,"Liepsch, Klaus :0,000 (4.L"]
["Radschuweit, Antje",null,"0,000 (4.L)","Weimarer SV 2",null,"Radschuweit, Antje :0,000 (4.L"]
["Ersatz1",null,null,"Weimarer SV 2",null,"Ersatz1 :"]
[]
[]
[null,null,null,null,null,"ZLSG_Wormstedt_5"]
["Kube, Martin",null,"4,000 (4.L)","ZLSG_Wormstedt_5",null,{"$f":"A348&B348&\" :\"&LEFT(C348,10)","v":"Kube, Martin :4,000 (4.L"}]
["Haase , Pascal",null,"2,444 (4.L)","ZLSG_Wormstedt_5",null,"Haase , Pascal :2,444 (4.L"]
["Oertel, Lutz",null,"2,182 (4.L)","ZLSG_Wormstedt_5",null,"Oertel, Lutz :2,182 (4.L"]
["Hartman, Marcel ",null,"0,000 (4.L)","ZLSG_Wormstedt_5",null,"Hartman, Marcel  :0,000 (4.L"]
["Feid, Klaus-Dieter",null,"0,000 (4.L)","ZLSG_Wormstedt_5",null,"Feid, Klaus-Dieter :0,000 (4.L"]
["Westermann, Dima",null,"0,000 (4.L)","ZLSG_Wormstedt_5",null,"Westermann, Dima :0,000 (4.L"]
["Kula , Stephanie",null,"0,000 (4.L)","ZLSG_Wormstedt_5",null,"Kula , Stephanie :0,000 (4.L"]
["Müller, Anja",null,"0,000 (4.L)","ZLSG_Wormstedt_5",null,"Müller, Anja :0,000 (4.L"]
["Ilmer, Steve",null,"0,000 (4.L)","ZLSG_Wormstedt_5",null,"Ilmer, Steve :0,000 (4.L"]
["Ersatz1",null,null,"ZLSG_Wormstedt_5",null,"Ersatz1 :"]
["Ersatz2",null,null,"ZLSG_Wormstedt_5",null,"Ersatz2 :"]
[null,null,null,null,null,"SG_Rot._Tannroda_4"]
["Backhaus, Conrad",null,1.25,"SG_Rot._Tannroda_4",null,{"$f":"A360&B360&\" :\"&LEFT(C360,10)","v":"Backhaus, Conrad :1,25"}]
["Wedekind, Jens",null,0.70599999999999996,"SG_Rot._Tannroda_4",null,"Wedekind, Jens :0,706"]
["Backhaus, Thomas",null,0.57099999999999995,"SG_Rot._Tannroda_4",null,"Backhaus, Thomas :0,571"]
["Helmli, Henry",null,0,"SG_Rot._Tannroda_4",null,"Helmli, Henry :0"]
["Bloß, Philip",null,0,"SG_Rot._Tannroda_4",null,"Bloß, Philip :0"]
["Großkunze, Tim",null,0,"SG_Rot._Tannroda_4",null,"Großkunze, Tim :0"]
["Großkunze, Tabea",null,0,"SG_Rot._Tannroda_4",null,"Großkunze, Tabea :0"]
["Seidel, Jonas",null,0,"SG_Rot._Tannroda_4",null,"Seidel, Jonas :0"]
["Ersatz1",null,null,"SG_Rot._Tannroda_4",null,"Ersatz1 :"]
[null,null,null,null,null,"ZLSG_Wormstedt_4"]
["Junge, Michael",null,"3,143 (3.L)","ZLSG_Wormstedt_4",null,{"$f":"A370&B370&\" :\"&LEFT(C370,10)","v":"Junge, Michael :3,143 (3.L"}]
["Hüttner, Christian",null,"3,111 (3.L)","ZLSG_Wormstedt_4",null,"Hüttner, Christian :3,111 (3.L"]
["von der Gönna, Gordon",null,"2,087 (3.L)","ZLSG_Wormstedt_4",null,"von der Gönna, Gordon :2,087 (3.L"]
["Veit , Silvio",null,"1,684 (3.L)","ZLSG_Wormstedt_4",null,"Veit , Silvio :1,684 (3.L"]
["Ersatz1",null,null,"ZLSG_Wormstedt_4",null,"Ersatz1 :"]
["Ersatz2",null,null,"ZLSG_Wormstedt_4",null,"Ersatz2 :"]
[]
[null,null,null,null,null,"SG_Mellingen_Taubach"]
[null,null,null,"BSV_04_Bad_Berka_F5",null,{"$f":"A378&B378&\" :\"&LEFT(C378,10)","v":" :"}]
[null,null,null,"BSV_04_Bad_Berka_F5",null," :"]
[null,null,null,"BSV_04_Bad_Berka_F5",null," :"]
[null,null,null,"BSV_04_Bad_Berka_F5",null," :"]
[null,null,null,"BSV_04_Bad_Berka_F5",null," :"]
[null,null,null,"BSV_04_Bad_Berka_F5",null," :"]
[null,null,null,"BSV_04_Bad_Berka_F5",null," :"]
[null,null,null,"BSV_04_Bad_Berka_F5",null," :"]
[null,null,null,"BSV_04_Bad_Berka_F5",null," :"]
[null,null,null,"BSV_04_Bad_Berka_F5",null," :"]
[null,null,null,"BSV_04_Bad_Berka_F5",null," :"]
["Ersatz1",null,null,"BSV_04_Bad_Berka_F5",null,"Ersatz1 :"]
["Ersatz2",null,null,"BSV_04_Bad_Berka_F5",null,"Ersatz2 :"]
[null,null,null,null,null," :"]
[null,null,null,null,null,"TSG_Apolda_2"]
["Vollmar, Daniel",null,2.3530000000000002,"TSG_Apolda_2",null,{"$f":"A393&\",\"&B393&\" F:\"&LEFT(C393,5)","v":"Vollmar, Daniel, F:2,353"}]
["Frömmchen, Andreas",null,1.895,"TSG_Apolda_2",null,"Frömmchen, Andreas, F:1,895"]
["Gast, Friedhelm",null,1.5289999999999999,"TSG_Apolda_2",null,"Gast, Friedhelm, F:1,529"]
["Trepanowski, Mario",null,1.111,"TSG_Apolda_2",null,"Trepanowski, Mario, F:1,111"]
["Beeg, Bettina",null,1.0589999999999999,"TSG_Apolda_2",null,"Beeg, Bettina, F:1,059"]
["Herrmann, Volker",null,0,"TSG_Apolda_2",null,{"$f":"A398&\",\"&B398&\" F:\"&LEFT(C398,5)","v":"Herrmann, Volker, F:0"}]
["Bohner, Stephan",null,0,"TSG_Apolda_2",null,"Bohner, Stephan, F:0"]
["Ersatz1",null,null,"TSG_Apolda_2",null,"Ersatz1, F:"]
["Ersatz2",null,null,"TSG_Apolda_2",null,"Ersatz2, F:"]

{"sheet":"Alle Spieler","index":6,"n_rows":221,"n_cols":1,"rows_kept":221,"cut":false,"hidden":true,"merged":[]}
["Achermann, Sindy :0,000 (4.L"]
["Albert, Dieter :1,538 (4.L"]
["Albert, Karin :0,000 (4.L"]
["Arenswald, Ralf :1,000 (1.L"]
["Ayaini, Ahmad :0"]
["Bachmann, Veit :0,000 (4.L"]
["Backhaus, Conrad :1,067 (4.L"]
["Backhaus, Conrad :1,25"]
["Backhaus, Thomas :0,571"]
["Backhaus, Thomas :0,667 (4.L"]
["Barth, Thomas :2,000 (4.L"]
["Baumbach, Kurt :0"]
["Beeg, Bettina, F:1,059"]
["Benkenstein, Andreas :2,162"]
["Berg, Julia :0,000 (4.L"]
["Berger, Gerrit :1,714"]
["Berndt, Manfred :2,769 (4.L"]
["Bischof, Knut :0,8"]
["Blatter, Paul :0,000 (4.L"]
["Bloß, Philip :0"]
["Blume, Thomas :2,468 (2.L"]
["Böhmer, Benjamin :0,000 (4.L"]
["Bohner, Stephan, F:0"]
["Brückner, Jürgen :3,467"]
["Brückner, Oliver :2,526"]
["Brückner, Steffen :0,863"]
["Burschberg, Swen :1,647"]
["Christ, Holger :2,308"]
["Dabelsteen, Frank :3,373 (2.L"]
["Danzer, Stefan :3"]
["Dill, Olaf :1,273"]
["Dobschal, Jürgen :1,778 (4.L"]
["Dr. Wolter, Wolfgang :3,733 (3.L"]
["Dutschke, Manuel :0"]
["Eckardt, Hans-Peter :0,824"]
["Eckhardt, Cornelia :0,000 (4.L"]
["Engelbrecht, Holger, F:0"]
["Erler, Nick :2,769"]
["Estelle, Dosin :0,000 (4.L"]
["Facius, Tino :2,051"]
["Fehre, Jürgen :2,4"]
["Feid, Klaus-Dieter :0,000 (4.L"]
["Findeis, Robert :0"]
["Fink, Sascha :2,727 (3.L"]
["Fischer, Thomas :2,000 (4.L"]
["Frömmchen, Andreas, F:1,895"]
["Gast, Friedhelm, F:1,529"]
["Geburtig, Gerd :0,5"]
["Gehrhardt, Christoph :2,118"]
["Geißler (Malsch), Robert :2,462"]
["Gerhardt, Uwe :3,111 (4.L"]
["Goreczny, Andrzej :2,182 (3.L"]
["Götz, Alexander :0,000 (4.L"]
["Götze, Martin :1,6"]
["Graf, Siegfried :0,000 (4.L"]
["Grau, Detlef :0,96"]
["Grau, Diethard :3,832 (4.L"]
["Grau, Kevin :3,333"]
["Grau, Mathias :1,636"]
["Gribkowski, Luka :0,000 (4.L"]
["Griehl, Clara :3,25"]
["Gröbl, Tino :2,182"]
["Große, Andreas :4,000 (2.L"]
["Große, Gerhard :1,333 (3.L"]
["Großkunze, Kai :0,552"]
["Großkunze, Tabea :0"]
["Großkunze, Tabea :0,000 (4.L"]
["Großkunze, Tim :0"]
["Großkunze, Tim :1,273 (4.L"]
["Haase , Pascal :2,444 (4.L"]
["Hänsgen, Marcel :0,000 (4.L"]
["Hartman, Marcel  :0,000 (4.L"]
["Hawlicki, Martin :2,96"]
["Helmli, Henry :0"]
["Herold, Michael :2,462 (2.L"]
["Herrmann, Volker, F:0"]
["Heydrich, Manfred :0,000 (4.L"]
["Hochstein, Andreas :1,143"]
["Horak, Ron :1,388"]
["Huskobla, Maik :2,424 (3.L"]
["Hüttner, Christian :3,111 (3.L"]
["Ilmer, Steve :0,000 (4.L"]
["Jaranowski, Klaus :0"]
["Junge, Michael :3,143 (3.L"]
["Kallenbach, Rainer :BL"]
["Karst, Daniel :1,926"]
["Kiesel, Jakob :3,111"]
["Kirchhof, Kurt :3,034 (3.L"]
["Kirchhoff, Michael :2,522"]
["Kizak, Jan :0,000 (4.L"]
["Klein, Irene :1,176"]
["Klenner, Thomas :2,9"]
["Klos, Heiko :3,143 (4.L"]
["Knobloch, Dirk :0,923"]
["Knobloch, Michael :2,182"]
["Koch, Nils :0,000 (4.L"]
["Köhler, Lothar :1,294 (4.L"]
["Köhler, Martin :2,884"]
["Koloskow, Alexander :0"]
["König, Alexa :0,000 (4.L"]
["König, Thomas :1,333"]
["Körpert, Reinhard :0,000 (4.L"]
["Korrek, Gabriele :0,000 (4.L"]
["Krause, Hartmut :0,000 (4.L"]
["Kreibich, Thomas :0,000 (4.L"]
["Krug, Norman :2,188 (2.L"]
["Kube, Martin :4,000 (4.L"]
["Kühlenz, Kai :0,000 (4.L"]
["Kuhn , Andreas :2,72"]
["Kula , Stephanie :0,000 (4.L"]
["Kunze-Mroz, Stephan :1,765 (3.L"]
["Lapp, Jens :3,067 (2.L"]
["Lauberbach, Vivienne :0,000 (4.L"]
["Liebner, Susan :0,000 (4.L"]
["Liepsch, Klaus :0,000 (4.L"]
["Löffler, Jörg :1,787 (3.L"]
["Löschner, Dominik :0,125 (2.L"]
["Lott, Martin :0"]
["Ludwig , Ralf :0"]
["Luu, Dung :2,519"]
["Mager, Sascha :3,111 (4.L"]
["Maier, Lukas :0,000 (4.L"]
["Maletz, Virginia :2,133 (4.L"]
["Mann, Johannes :3,4 (4.L)"]
["Marr, Klaus :2,323 (4.L"]
["Marth, Uwe :1,641 (4.L"]
["Mehner, Thomas :0,000 (4.L"]
["Mendel, Jürgen :1,029 (2.L"]
["Mendler, Uwe :1,913"]
["Michaelis, Jörg :2,933 (3.L"]
["Michel, Horst :2,625"]
["Mohr, Hubert :1,073 4.L)"]
["Mohr, Michael :0,970 (4.L"]
["Müller, Anja :0,000 (4.L"]
["Müller, Hans-Georg :0,000 (4.L"]
["Niebling, Holger :0,870 (4.L"]
["Niemeyer, Gerd :1,800 (4.L"]
["Nitsche, Frederik :4"]
["Oertel, Lutz :2,182 (4.L"]
["Oswald, Jens-Uwe :2,419 (4.L"]
["Pappenberg, Jan :1,371"]
["Peter, Frank :2,545 (2.L"]
["Pfaffe,  Wolfgang :1,829"]
["Pfundheller, Felix :2,444 (2.L"]
["Pietsch, Sebastian :2,118"]
["Plomitzer, Manfred :0,571 (2.L"]
["Pospich , Michael :2,345 (1.L"]
["Prokopp, Sebastian :0,000 (4.L"]
["Putz, Andreas :2,194 (3.L"]
["Quett, Noah :2,462"]
["Radschuweit, Antje :0,000 (4.L"]
["Rang, Uwe :0,000 (4.L"]
["Rau, Johann :1,846"]
["Rhiel , Martin :0,667"]
["Richter, Andreas :2,256 (2.L"]
["Riese, Peter :3,733 (4.L"]
["Riese, Sven :0,000 (4.L"]
["Römer, Mike :0"]
["Röske, Michael :3,525 (4.L"]
["Sachs, Michael :1,556"]
["Sauer, Silvia :0,000 (4.L"]
["Schachert, Hans Werner :1,4"]
["Scharf, Helmut :1,667"]
["Schley, Sabine :0,762 (4.L"]
["Schmidt-Apel, Heiko :2,333"]
["Scholz, Rene :0,000 (4.L"]
["Scholz, Ronny :2,25"]
["Schöne, Georg :2,844"]
["Schramke, Michael :0,267"]
["Schröder, Bertold :1,021 (2.L"]
["Schröter, Jörg :2,24"]
["Schulz, Astrid :1,655"]
["Schulze-Sandow, Holger :0,000 (4.L"]
["Schwager, Matthias :1,429"]
["Seel, Richards :0,000 (4.L"]
["Seidel, Jonas :0"]
["Seidemann, Heiko :0,000 (4.L"]
["Seidt, Henning :3,238 (3.L"]
["Seifarth Siegfried :1,7"]
["Seifert, Frank :0,000 (4.L"]
["Siefert, Edeltraud :0,000 (4.L"]
["Simon, Lennard :1,268"]
["Singer, Franziska :1,882"]
["Singer, Nicklas :2,737"]
["Sitz, Susanne :2,267 (3.L"]
["Smuda von Trzebiatowski, Paul :3,412 (2.L"]
["Steinkamp, Bernd :2,359"]
["Strobach, Gina :0,000 (4.L"]
["Süß, Ronald :2,968"]
["Taubert, Anja :2,667 (3.L"]
["Taubert, Marina :1,000 (4.L"]
["Thümmel, Maik :0,000 (4.L"]
["Täger, Steffen :0,000 (4.L"]
["Trautwein, Sven :0,500 (1.L"]
["Trepanowski, Jürgen :1,128"]
["Trepanowski, Mario, F:1,111"]
["Ungethüm, Philipp :0,200 (2.L"]
["van Elsen, Laurel :0"]
["Veit , Silvio :1,684 (3.L"]
["Vinz, Thomas :0"]
["Vogler, Ralph :2,316 (3.L"]
["Voigt, Lukas :2,000 (4.L"]
["Vollmann, Ulrich :3,200 (4.L"]
["Vollmar, Daniel, F:2,353"]
["von der Gönna, Gordon :2,087 (3.L"]
["Wapner, Achim :2,526"]
["Wattenbach, Klaus :1,857"]
["Weber, Bernhard :1,943 (4.L"]
["Wedekind, Frederick :3,163"]
["Wedekind, Jens :0,706"]
["Wedekind, Jens :1,053 (4.L"]
["Weisig, Stefan :1,935 (4.L"]
["Weller, Anette, F:0"]
["Weller, Siegfried :0"]
["Wenke, Wolfram :1,714"]
["Westermann, Dima :0,000 (4.L"]
["Wollmann, Dirk :1,538"]
["Worms, Jürgen :1,833 (4.L"]
["Würzburg, Martin :2,788"]
["Yalin, Murat :0,000 (4.L"]
["Zsoldos, Attila :2,133"]

{"sheet":"START","index":7,"n_rows":35,"n_cols":52,"rows_kept":35,"cut":false,"hidden":true,"merged":[[32,15,32,17],[34,0,36,1],[34,2,36,24],[30,3,30,5],[30,7,30,8],[31,3,31,5],[31,7,31,8],[32,3,32,5],[32,7,32,9],[33,4,33,6],[33,0,33,3],[27,3,27,5],[27,7,27,8],[28,3,28,5],[28,7,28,8],[29,3,29,5],[29,7,29,8],[24,3,24,5],[24,7,24,8],[25,3,25,5],[25,7,25,8],[26,3,26,5],[26,7,26,8],[21,3,21,5],[21,7,21,8],[22,3,22,5],[22,7,22,8],[23,3,23,5],[23,7,23,8],[18,3,18,5],[18,7,18,8],[19,3,19,5],[19,7,19,8],[20,3,20,5],[20,7,20,8],[15,3,15,5],[15,7,15,8],[16,3,16,5],[16,7,16,8],[17,3,17,5],[17,7,17,8],[13,17,13,18],[13,19,13,20],[13,21,13,22],[13,23,13,24],[13,11,13,12],[13,13,13,14],[13,15,13,16],[14,3,14,5],[14,7,14,8],[13,3,13,5],[13,7,13,8],[13,9,13,10],[11,1,11,2],[11,3,11,4],[11,9,11,13],[11,18,11,24],[12,1,12,4],[12,8,12,13],[12,18,12,24],[12,16,12,17],[9,1,9,4],[9,8,9,13],[9,16,9,17],[9,18,9,24],[10,1,10,2],[10,3,10,4],[10,9,10,13],[10,18,10,24],[5,18,5,24],[6,1,6,4],[6,8,6,13],[6,18,6,24],[8,1,8,4],[8,8,8,13],[8,16,8,17],[8,18,8,24],[0,0,1,24],[2,1,2,5],[2,8,2,15],[2,20,2,24],[7,1,7,4],[7,8,7,13],[7,18,7,24],[3,1,3,5],[3,8,3,15],[3,16,3,24],[4,1,4,5],[4,16,4,17],[4,18,4,24],[5,1,5,4],[5,8,5,13],[5,16,5,17]]}
["Spielberichtsbogen der Tischtennis Vereinsliga > Region Weimar<",null,null,null,null,null,null,null,null,null,null,null,null,null,null,null,null,null,null,null,null,null,null,null,null,null,null,null,null,null,null,null,null,null,null,null,null,null,null,null,null,null,null,null,null,null,null,null,null,null,null,"x"]
[]
["x","Meisterschaftsspiel",null,null,null,null,null,"Liga:",null,null,null,null,null,null,null,null,"Spielnummer:"]
[null,"Pokalspiel",null,null,null,null,null,"Ort:",null,null,null,null,null,null,null,null,"Ersatzspieler:"]
[null,"Freundschaftsspiel",null,null,null,null,null,"Datum:",null,null,null,null,null,null,null,null,"Heim",null,{"$f":"B6","v":0}]
["Heim",null,null,null,null,"S","N","Gast",null,null,null,null,null,null,"S","N","Ersatz1:",null,null,null,null,null,null,null,null,null,null,null,null,null,null,null,null,null,null,null,null,14]
[1,null,null,null,null,{"$f":"COUNTIFS(D$17:D$32,B7,V$17:V$32,\"1\")","v":0},{"$f":"COUNTIFS(D$17:D$32,B7,V$17:V$32,\"0\")","v":0},1,null,null,null,null,null,null,{"$f":"COUNTIFS(H$17:H$32,I7,W$17:W$32,\"1\")","v":0},{"$f":"COUNTIFS(H$17:H$32,I7,W$17:W$32,\"0\")","v":0},"Ersatz2:",null,null,null,null,null,null,null,null,null,null,null,null,null,null,null,null,null,null,null,null,13]
[2,null,null,null,null,{"$f":"COUNTIFS(D$17:D$32,B8,V$17:V$32,\"1\")","v":0},{"$f":"COUNTIFS(D$17:D$32,B8,V$17:V$32,\"0\")","v":0},2,null,null,null,null,null,null,{"$f":"COUNTIFS(H$17:H$32,I8,W$17:W$32,\"1\")","v":0},{"$f":"COUNTIFS(H$17:H$32,I8,W$17:W$32,\"0\")","v":0},"Ersatz3:",null,null,null,null,null,null,null,null,null,null,null,null,null,null,null,null,null,null,null,null,12]
[3,null,null,null,null,{"$f":"COUNTIFS(D$17:D$32,B9,V$17:V$32,\"1\")","v":0},{"$f":"COUNTIFS(D$17:D$32,B9,V$17:V$32,\"0\")","v":0},3,null,null,null,null,null,null,{"$f":"COUNTIFS(H$17:H$32,I9,W$17:W$32,\"1\")","v":0},{"$f":"COUNTIFS(H$17:H$32,I9,W$17:W$32,\"0\")","v":0},"Gast",null,{"$f":"I6","v":0},null,null,null,null,null,null,null,null,null,null,null,null,null,null,null,null,null,null,11]
[4,null,null,null,null,{"$f":"COUNTIFS(D$17:D$32,B10,V$17:V$32,\"1\")","v":0},{"$f":"COUNTIFS(D$17:D$32,B10,V$17:V$32,\"0\")","v":0},4,null,null,null,null,null,null,{"$f":"COUNTIFS(H$17:H$32,I10,W$17:W$32,\"1\")","v":0},{"$f":"COUNTIFS(H$17:H$32,I10,W$17:W$32,\"0\")","v":0},"Ersatz1:",null,null,null,null,null,null,null,null,null,null,null,null,null,null,null,null,null,null,null,null,10]
["D1",null,null,null,null,{"$f":"COUNTIFS(D$15:D$16,B11&\"/\"&D11,V$15:V$16,\"1\")","v":0},{"$f":"COUNTIFS(D$15:D$16,B11&\"/\"&D11,V$15:V$16,\"0\")","v":0},"D1",null,null,null,null,null,null,{"$f":"COUNTIFS(H$15:H$16,I11&\"/\"&J11,W$15:W$16,\"1\")","v":0},{"$f":"COUNTIFS(H$15:H$16,I11&\"/\"&J11,W$15:W$16,\"0\")","v":0},"Ersatz2:",null,null,null,null,null,null,null,null,null,null,null,null,null,null,null,null,null,null,null,null,9]
["D2",null,null,null,null,{"$f":"COUNTIFS(D$15:D$16,B12&\"/\"&D12,V$15:V$16,\"1\")","v":0},{"$f":"COUNTIFS(D$15:D$16,B12&\"/\"&D12,V$15:V$16,\"0\")","v":0},"D2",null,null,null,null,null,null,{"$f":"COUNTIFS(H$15:H$16,I12&\"/\"&J12,W$15:W$16,\"1\")","v":0},{"$f":"COUNTIFS(H$15:H$16,I12&\"/\"&J12,W$15:W$16,\"0\")","v":0},"Ersatz3:",null,null,null,null,null,null,null,null,null,null,null,null,null,null,null,null,null,null,null,null,8]
["Sen2",null,null,null,null,null,null,"Sen2",null,null,null,null,null,null,null,null,"Senior+",null,"Kein Seniorwechsel",null,null,null,null,null,null,null,null,null,null,null,null,null,null,null,null,null,null,7]
["Spiel","Pokal","Punkt-spiel",{"$f":"A6","v":"Heim"},null,null,null,{"$f":"H6","v":"Gast"},null,"1. Satz",null,"2. Satz",null,"3. Satz",null,"4. Satz",null,"5.Satz",null,"Sätze Gesamt",null,"Punkte Gesamt",null,"End stand",null,null,null,null,null,null,null,null,null,null,null,null,null,6]
["1.","1     2","D1:D1",{"$f":"IF($A$3=\"x\",CONCATENATE(B11)&\"/\"&CONCATENATE(D11),CONCATENATE(B7))","v":"/"},null,null,null,{"$f":"IF($A$3=\"x\",CONCATENATE(I11)&\"/\"&CONCATENATE(J11),CONCATENATE(I8))","v":"/"},null,null,null,null,null,null,null,null,null,null,null,{"$f":"IF(J15<>\"\",IF(J15>K15,\"1\", \"0\") +IF(L15>M15,\"1\", \"0\")+IF(N15>O15,\"1\", \"0\")+IF(P15>Q15,\"1\", \"0\")+IF(R15>S15,\"1\", \"0\"),\"\")","v":""},{"$f":"IF(J15<>\"\",IF(J15<K15,\"1\", \"0\") +IF(L15<M15,\"1\", \"0\")+IF(N15<O15,\"1\", \"0\")+IF(P15<Q15,\"1\", \"0\")+IF(R15<S15,\"1\", \"0\"),\"\")","v":""},{"$f":"IF(J15=\"\",\"\",IF(J15<>\"\",IF(T15=3,1,0),))","v":""},{"$f":"IF(J15=\"\",\"\",IF(J15<>\"\",IF(U15=3,1,0),))","v":""},{"$f":"IF(J15<>\"\",V15,\"\")","v":""},{"$f":"IF(J15<>\"\",W15,\"\")","v":""},null,null,null,null,null,null,null,null,null,null,null,null,5]
["2.","2     1","D2:D2",{"$f":"IF($A$3=\"x\",CONCATENATE(B12)&\"/\"&CONCATENATE(D12),CONCATENATE(B8))","v":"/"},null,null,null,{"$f":"IF($A$3=\"x\",CONCATENATE(I12)&\"/\"&CONCATENATE(J12),CONCATENATE(I7))","v":"/"},null,null,null,null,null,null,null,null,null,null,null,{"$f":"IF(J16<>\"\",IF(J16>K16,\"1\", \"0\") +IF(L16>M16,\"1\", \"0\")+IF(N16>O16,\"1\", \"0\")+IF(P16>Q16,\"1\", \"0\")+IF(R16>S16,\"1\", \"0\"),\"\")","v":""},{"$f":"IF(J16<>\"\",IF(J16<K16,\"1\", \"0\") +IF(L16<M16,\"1\", \"0\")+IF(N16<O16,\"1\", \"0\")+IF(P16<Q16,\"1\", \"0\")+IF(R16<S16,\"1\", \"0\"),\"\")","v":""},{"$f":"IF(J16=\"\",\"\",IF(J16<>\"\",IF(T16=3,1,0),))","v":""},{"$f":"IF(J16=\"\",\"\",IF(J16<>\"\",IF(U16=3,1,0),))","v":""},{"$f":"IFERROR(V16+X15,\"\")","v":""},{"$f":"IFERROR(W16+Y15,\"\")","v":""},null,null,null,null,null,null,null,null,null,null,null,null,4]
["3.","D1   D1","1     2",{"$f":"IF($A$3=\"x\",CONCATENATE(B7),CONCATENATE(B11)&\"/\"&CONCATENATE(D11))","v":""},null,null,null,{"$f":"IF($A$3=\"x\",CONCATENATE(I8),CONCATENATE(I11)&\"/\"&CONCATENATE(J11))","v":""},null,null,null,null,null,null,null,null,null,null,null,"","","","",{"$f":"IFERROR(V17+X16,\"\")","v":""},"",null,null,null,null,null,null,null,null,null,null,null,null,3]
["4.","1     1","2     1",{"$f":"IF($A$3=\"x\",CONCATENATE(B8),CONCATENATE(B8))","v":""},null,null,null,{"$f":"IF($A$3=\"x\",CONCATENATE(I7),CONCATENATE(I7))","v":""},null,null,null,null,null,null,null,null,null,null,null,"","","","","","",null,null,null,null,null,null,null,null,null,null,null,null,2]
["5.","2     2","3     4",{"$f":"IF($A$3=\"x\",CONCATENATE(B9),CONCATENATE(B8))","v":""},null,null,null,{"$f":"IF($A$3=\"x\",CONCATENATE(I10),CONCATENATE(I8))","v":""},null,null,null,null,null,null,null,null,null,null,null,"","","","","","",null,null,null,null,null,null,null,null,null,null,null,null,1]
["6.",null,"4     3",{"$f":"IF($A$3=\"x\",CONCATENATE(B10),\"\")","v":""},null,null,null,{"$f":"IF($A$3=\"x\",CONCATENATE(I9),\"\")","v":""},null,null,null,null,null,null,null,null,null,null,null,"","","","","","",null,null,null,null,null,null,null,null,null,null,null,null,0]
["7.",null,"1     1",{"$f":"IF($A$3=\"x\",CONCATENATE(B7),\"\")","v":""},null,null,null,{"$f":"IF($A$3=\"x\",CONCATENATE(I7),\"\")","v":""},null,null,null,null,null,null,null,null,null,null,null,"","","","","",""]
["8.",null,"2     2",{"$f":"IF($A$3=\"x\",CONCATENATE(B8),\"\")","v":""},null,null,null,{"$f":"IF($A$3=\"x\",CONCATENATE(I8),\"\")","v":""},null,null,null,null,null,null,null,null,null,null,null,"","","","","",""]
["9.",null,"3     3",{"$f":"IF($A$3=\"x\",CONCATENATE(B9),\"\")","v":""},null,null,null,{"$f":"IF($A$3=\"x\",CONCATENATE(I9),\"\")","v":""},null,null,null,null,null,null,null,null,null,null,null,"","","","","",""]
["10.",null,"4     4",{"$f":"IF($A$3=\"x\",CONCATENATE(B10),\"\")","v":""},null,null,null,{"$f":"IF($A$3=\"x\",CONCATENATE(I10),\"\")","v":""},null,null,null,null,null,null,null,null,null,null,null,"","","","","",""]
["11.",null,"3     1",{"$f":"IF($A$3=\"x\",CONCATENATE(B9),\"\")","v":""},null,null,null,{"$f":"IF($A$3=\"x\",CONCATENATE(I7),\"\")","v":""},null,null,null,null,null,null,null,null,null,null,null,"","","","","",""]
["12.",null,"1     3",{"$f":"IF($A$3=\"x\",CONCATENATE(B7),\"\")","v":""},null,null,null,{"$f":"IF($A$3=\"x\",CONCATENATE(I9),\"\")","v":""},null,null,null,null,null,null,null,null,null,null,null,"","","","","",""]
["13.",null,"2     4",{"$f":"IF($A$3=\"x\",CONCATENATE(B8),\"\")","v":""},null,null,null,{"$f":"IF($A$3=\"x\",CONCATENATE(I10),\"\")","v":""},null,null,null,null,null,null,null,null,null,null,null,"","","","","",""]
["14.",null,"4     2",{"$f":"IF($A$3=\"x\",CONCATENATE(B10),\"\")","v":""},null,null,null,{"$f":"IF($A$3=\"x\",CONCATENATE(I8),\"\")","v":""},null,null,null,null,null,null,null,null,null,null,null,"","","","","",""]
["15.",null,"1     4",{"$f":"IF($A$3=\"x\",CONCATENATE(B7),\"\")","v":""},null,null,null,{"$f":"IF($A$3=\"x\",CONCATENATE(I10),\"\")","v":""},null,null,null,null,null,null,null,null,null,null,null,"","","","","",""]
["16.",null,"4     1",{"$f":"IF($A$3=\"x\",CONCATENATE(B10),\"\")","v":""},null,null,null,{"$f":"IF($A$3=\"x\",CONCATENATE(I7),\"\")","v":""},null,null,null,null,null,null,null,null,null,null,null,"","","","","",""]
["17.",null,"2     3",{"$f":"IF($A$3=\"x\",CONCATENATE(B8),\"\")","v":""},null,null,null,{"$f":"IF($A$3=\"x\",CONCATENATE(I9),\"\")","v":""},null,null,null,null,null,null,null,null,null,null,null,"","","","","",""]
["18.",null,"3     2",{"$f":"IF($A$3=\"x\",CONCATENATE(B9),\"\")","v":""},null,null,null,{"$f":"IF($A$3=\"x\",CONCATENATE(I8),\"\")","v":""},null,null,null,null,null,null,null,null,null,null,null,"","","","","",""]
["Sieg:","4.Punkt","10.Punkt","Sieger:",null,null,null,{"$f":"IF(I6<>\"\",IF(A3=\"x\",IF(X33=10,B6,IF(Y33=10,I6,\"!Unentschieden!\")),IF(X33=4,B6,IF(Y33=4,H14,\"!Unentschieden!\"))),\"\")","v":""},null,null,"mit",null,{"$f":"IF(X33>Y33,CONCATENATE(X33),Y33)","v":""},null,{"$f":"IF(X33>Y33,CONCATENATE(Y33),X33)","v":""},"Punkten",null,null,null,{"$f":"IF(T15=\"\",\"\",SUM(T15:T32))","v":""},{"$f":"IF(U15=\"\",\"\",SUM(U15:U32))","v":""},null,null,{"$f":"IF(J15=\"\",\"\",IF(MAX(X15:X32)>10,10,MAX(X15:X32)))","v":""},{"$f":"IF(J15=\"\",\"\",IF(MAX(Y15:Y32)>10,\"10\",MAX(Y15:Y32)))","v":""}]
[null,null,null,null,"Unterschriften: ",null,null,"MF Gastgeber",null,null,null,null,"MF Gast"]
["Bemerkungen: "]

{"sheet":"STARTEN","index":8,"n_rows":9,"n_cols":18,"rows_kept":9,"cut":false,"hidden":false,"merged":[[1,1,1,3]]}
[null,null,"Spielzeit 2022/2023 Hinrunde"]
[null,"BITTE WÄHLE ZUM START HIER DEIN SPIEL AUS!"]
[]
[null,"Staffel 1:",null,null,null,null,null,null,null,null,null,null,null,null,null,null,null,"Nicht ändern"]
[]
[null,"Staffel 2:",null,null,null,null,null,null,null,null,null,null,null,null,null,null,null,{"$f":"IFERROR(LEFT(RIGHT(C4,LEN(C4)-SEARCH(\":\",C4)),6),)","v":0}]
[null,null,null,null,null,null,null,null,null,null,null,null,null,null,null,null,null,{"$f":"IFERROR(LEFT(RIGHT(C6,LEN(C6)-SEARCH(\":\",C6)),6),)","v":0}]
[null,"Staffel 3:",null,null,null,null,null,null,null,null,null,null,null,null,null,null,null,{"$f":"IFERROR(LEFT(RIGHT(C8,LEN(C8)-SEARCH(\":\",C8)),6),)","v":0}]
[null,null,null,null,null,null,null,null,null,null,null,null,null,null,null,null,null,{"$f":"IFERROR(LEFT(RIGHT(C10,LEN(C10)-SEARCH(\":\",C10)),6),)","v":0}]

{"sheet":"Anleitung","index":9,"n_rows":12,"n_cols":3,"rows_kept":12,"cut":false,"hidden":false,"merged":[]}
[null,"Anleitung:"]
[null,null,"Beginn: Tabellenblatt STARTEN auswählen! Dort das Spiel wählen!\n1. Im neuen Blatt Mannschaften und Spieler wählen!\n"]
[null,null,"2. Alle Eingaben vornehmen und die Gelben Felder füllen"]
[null,null,"3. Ersatzspieler werden oben Rechts für Heim und Gast eingetragen!"]
[null,null,"4. Am Ende wird mit Bild Speichern und Formular abschliessen das Formular exportiert und kann an den Staffelleiter gesendet werden. Zu finden ist das Bild unter c:/Spielberichte"]
[null,null,"Blendet das aktuelle Spielergebnis des"]
[null,null,"Spiels in Groß ein,damit Zuschauer den"]
[null,null,"aktuellen Stand sehen können"]
[]
[null,null,"Speichert das aktuelle Spielergebnis als JPG"]
[null,null,"Datei unter C:/Spielberichte. Diese kann dann"]
[null,null,"an den Staffelleiter versendet werden."]